Workbook

Sheet 1a. READ ME (Start here)
B2: Purpose
B4: ***Please read through the entirety of this sheet (1a) then proceed to the next sheet (1b).*** The Greenhouse Gas (GHG) Emission Accounting Template is primarily intended to be used by applicants to satisfy the Critical Mineral Infrastructure Fund (CMIF) program requirements, including demonstrating GHG emission reductions and displacements. Use of the template ensures a consistent methodology and approach to GHG emission reduction or displacement quantification for all types of projects. This template is designed to align with the general specifications of the CSA ISO 14064-2:20 Greenhouse gasses - Part 2 (CSA ISO 14064-2:20), including standardized requirements and processes for project-level GHG quantification, monitoring, and reporting. Please note that use of this template does not ensure that all requirements of CSA ISO 14064-2:20 are met, and may NOT be used to satisfy the requirements of other programs and/or carbon markets. Please fill in all REQUIRED fields and pay attention to units. Fields that are not highlighted should NOT be edited.
B6: Legend:
B8: REQUIRED Field
B9: OPTIONAL Field
B11: Core tenets:
B13: Completeness | C13: Include all relevant GHG emissions and removals. Include all relevant information to satisfy criteria and procedures.
B14: Consistency | C14: Enable meaningful comparisons in GHG-related information.
B15: Accuracy | C15: Reduce biases and uncertainties as far as is practical.
B16: Transparency | C16: Disclose sufficient and appropriate GHG-related information to allow intended users to make decisions with reasonable confidence.
B17: Conservativeness | C17: Use conservative assumptions, values, and procedures to ensure that GHG emission reductions or removal enhancements are not over-estimated.
B20: Relevant Definitions
B22: Term | C22: Definition
B23: Greenhouse gas (GHG) | C23: Gaseous constituent of the atmosphere, both natural and anthropogenic, that absorbs and emits radiation at specific wavelengths within the spectrum of infrared radiation emitted by the Earth's surface, the atmosphere, and clouds. NOTE: GHGs include carbon dioxide (CO2), methane (CH4), nitrous oxide (N2O), hydrofluorocarbons (HFCs), perfluorocarbons (PFCs), and sulfur hexafluoride (SF6), among other gases.
B24: GHG emission | C24: Total mass of a GHG (or GHGs) released to the atmosphere over a specified period of time.
B25: GHG reduction | C25: Calculated decrease (delta) of GHG emissions between a baseline scenario and the project.
B26: GHG displacement | C26: Calculated difference (delta) in GHG emissions between a hypothetical baseline scenario (most-likely alternative) and the project.
B27: Baseline scenario | C27: A reference case consisting of events or conditions most likely to persist or occur in the absence of a proposed project. A baseline scenario may also consist of a hypothetical reference case that best represents the conditions most likely to occur in the absence of a proposed project. A baseline scenario determined using a project-specific approach represents what would occur in the absence of the project, whereas a GHG programme can prescribe another approach to determine the baseline scenario, such as a performance standard.
B28: Carbon dioxide equivalent (CO2e) | C28: Unit for comparing the radiative forcing of a GHG to that of carbon dioxide. NOTE: The carbon dioxide equivalent is calculated using the mass of a given GHG multiplied by its global warming potential.

Sheet 1b. Basic info
B2: How this template works
B4: This sheet collects basic information about your energy project for both Stream 1: Preconstruction and Stream 2: Shovel Ready to the Critical Mineral Infrastructure Fund (CMIF). This workbook will estimate the annual average GHG reductions and/or displacements of your energy project for the following types/technologies: grid connection (transmission and distribution), renewable energy generation (solar PV and onshore wind), and/or energy storage projects based on the information provided by the applicant. The results will be shown in the Review table at the bottom of this sheet. The results will also be used to prepopulate sheet 6. The methodology for the estimation is also included below. It is the responsibility of the applicant to verify the review table and edit the highlighted cells of sheet 6, as needed. If the project includes other technologies (i.e. hydroelectric or biomass generation, etc.), more detailed information is required to estimate the project's GHG displacements and/or reductions. Proceed to and complete sheets 2, 5, and 6. Your answers to the screening questions below will also trigger this result in row 21 and/or in subsequent rows. For further guidance, please send an email to cmif-fimc@nrcan-rncan.gc.ca or consult sheet 4 for examples. Please prompts carefully and ensure your inputs are expressed in the correct units for each field.
B6: Basic project screening
B8: Project timeline and location
B10: Estimated or known calendar year project is commissioned and achieves actual emission reductions or displacements):
B11: Expected life of funded technology, product, or service (years) (e.g., 10):
B12: Province or territory in which the project is located:
B14: Technologies
B16: Does the project include a new grid connection (transmission or distribution line) to meet loads otherwise met by other energy sources (e.g., diesel, natural gas)?
B17: Does the project include new solar PV panels or onshore wind turbines?
B18: Does the project include new energy storage assets (e.g., battery energy storage system (BESS))?
B19: Does the project include other energy technologies that impact GHG displacements or reductions?
B21: =IF(OR(D10="",D11="",D12="",D16="",D17="",D18="",D19=""),"Please complete the fields above. Otherwise, more detailed information about your project's GHG impacts is needed. Please complete sheets 2, 5 and 6.",IF(AND(D16="No",D17="No",D18="No"),"Based on the information above, we need more detailed information about your project's GHG impacts. Please proceed to Sheets 2, 5, and 6. Do not complete the fields below.",IF(D19="Yes","Based on the information above, we need more detailed information about your project's GHG impacts. Please complete sheets 2, 5, and 6. Do not complete the fields below.","Please complete the fields below if applicable."))) -> Please complete the fields above. Otherwise, more detailed information about your project's GHG impacts is needed. Please complete sheets 2, 5 and 6.
B23: Energy project information
B25: Grid connection projects
B27: Expected power rating (MW/MVA):
B28: Expected voltage (kV):
B29: Expected distance (km):
B30: Annual energy demand of future and existing mining projects that would be served by the infrastructure (MWh)*: *Include the sum of all expected or known annual electricity demand of the mining projects that would be served by the infrastructure project.
B31: Would this energy demand otherwise be met by diesel (emission factor: light fuel oil - industrial) generation?
B33: =IF(D31="Yes","Please complete the fields below if applicable.",IF(D31="No","Based on the information above, more detailed information about your project's GHG impacts is needed. Please proceed to Sheets 2, 5, and 6. Do not complete the fields below.","Please complete the fields above. Otherwise, more detailed information about your project's GHG impacts is needed. Please complete sheets 2, 5 and 6.")) -> Please complete the fields above. Otherwise, more detailed information about your project's GHG impacts is needed. Please complete sheets 2, 5 and 6.
B35: Generation projects
B37: Indicate the generation technology type:
B38: Indicate the energy capacity of the new electricity generation infrastructure (MW):
B39: Indicate the expected annual energy production (P50 energy yield* for Stream 2 projects) of the new electricity generation infrastructure (MWh): The P50 energy yield is a statistical measure used in the renewable energy industry to estimate the expected energy production of a project, such as a solar or wind farm. For Stream 1 projects, use the best estimate available.
B40: Would this energy production displace electricity from the provincial grid, or from diesel (emission factor: light fuel oil - industrial)? Please note: if you select the provincial grid, this calculation assumes that new electricity generation will displace equivalent volume of natural gas generation as the marginal resource.
B42: =IF(OR(D37="",D38="",D39="",D40=""),"Please complete the fields above. Otherwise, more detailed information about your project's GHG impacts is needed. Please complete sheets 2, 5, and 6.",IF(D40="Other","Based on the information above, more detailed information about the project's GHG impacts is needed. Please complete sheets 2, 5, and 6. Do not complete the fields below.","Please input the information requested below.")) -> Please complete the fields above. Otherwise, more detailed information about your project's GHG impacts is needed. Please complete sheets 2, 5, and 6.
B44: Storage projects
B46: Power rating (MW):
B47: Energy capacity (MWh):
B48: Before proceeding, please note that out of the following common use cases for energy storage, this sheet can only account for clipped energy: 1) Energy Arbitrage. Battery is charged at off-peak times (via the provincial or territorial grid) and discharged at peak times (e.g., displacing GHGs produced by natural gas and/or diesel, depending on the mine specific context). 2) Behind the Meter. Energy storage units are connected behind-the-meter. Power injections into the grid are possible with appropriate incentives; however, the storage unit’s main function is providing behind the meter value such as peak reduction or back up power. 3) Clipped Energy. Energy storage units may be coupled with a renewable energy generation asset for the purpose of capturing clipped or curtailed energy.
B49: Select the use case that best describes how the storage system will be used: | D49: N/A (no storage)
B50: =IF(OR(D49="N/A (no storage)",D49="Clipped energy"),"Please complete the fields below if applicable.","Please complete the fields above. Otherwise, more detailed information about your project's GHG impacts is needed. Please complete sheets 2, 5, and 6.") -> Please complete the fields below if applicable.
B51: Annual electricity output from the addition of storage (MWh) (for clipped energy projects):
B53: Review Table
B55: Please review the table below and sheet 6 (6. Summary), and edit the highlighted cells if needed. If the table below does not accurately reflect GHG displacements, please explain why in the field below and complete Sheets 2, 5, and 6.
B56: Methodology: Net annual emission displacement = Baseline Emissions − Project Emissions Where: Baseline Emissions = ∑ (Energy × Baseline Emission Factor) Project Emissions = ∑ (Energy × Project Emission Factor)
B57: If applicable, reason(s) your project is not accurately reflected in the table below:
C59: Project emission factor (EF) (tCO2e/MWh) | D59: Baseline emission factor (EF) (tCO2e/MWh) | E59: Energy (MWh) | F59: Project emissions (annual) (tCO2e) | G59: Baseline emissions (annual) (tCO2e) | H59: Annual net emission displacement (tCO2e)
B60: Interconnection | C60: =IF(D16="Yes",AVERAGE(IF(D10+D11-1<=2050,INDEX('3. Data'!$C$32:$AB$44,MATCH(D12,'3. Data'!$B$32:$B$44,0),MATCH(TEXT(D10,"0"),'3. Data'!$C$31:$AB$31,0)):INDEX('3. Data'!$C$32:$AB$44,MATCH(D12,'3. Data'!$B$32:$B$44,0),MATCH(TEXT(D10+D11-1,"0"),'3. Data'!$C$31:$AB$31,0))), INDEX('3. Data'!$C$32:$AB$44,MATCH(D12,'3. Data'!$B$32:$B$44,0),MATCH(TEXT(D10,"0"),'3. Data'!$C$31:$AB$31,0)):INDEX('3. Data'!$C$32:$AB$44,MATCH(D12,'3. Data'!$B$32:$B$44,0),MATCH("2050",'3. Data'!$C$31:$AB$31,0))+(D10+D11-2051)*INDEX('3. Data'!$C$32:$AB$44,MATCH(D12,'3. Data'!$B$32:$B$44,0),MATCH("2050",'3. Data'!$C$31:$AB$31,0))),"0") -> 0 | D60: =IF(D31="Yes",('3. Data'!C96)/1000,0) -> 0 | E60: =D30 -> 0 | F60: =E60*C60 -> 0 | G60: =E60*D60 -> 0 | H60: =G60-F60 -> 0
B61: Generation | C61: =IF(D37="Onshore wind",'3. Data'!C52,IF(D37="Solar PV",'3. Data'!C54)) -> FALSE | D61: =IF(D40="Diesel",('3. Data'!C97)/1000,IF(D40="Grid",'3. Data'!C74)) -> FALSE | E61: =D39 -> 0 | F61: =E61*C61 -> 0 | G61: =E61*D61 -> 0 | H61: =G61-F61 -> 0
B62: Storage | C62: =IF(D37="Onshore wind",'3. Data'!C52,IF(D37="Solar PV",'3. Data'!C54)) -> FALSE | D62: =IF(D40="Diesel",('3. Data'!C97)/1000,IF(D40="Grid",'3. Data'!C74)) -> FALSE | E62: =D51 -> 0 | F62: 0 | G62: 0 | H62: 0
B63: TOTAL | C63: - | D63: - | E63: - | F63: =SUM(F60:F62) -> 0 | G63: 0 | H63: 0
E64: Please note that emissions calculated here will display as 'Direct' in sheet 6.
G65: Average annual percentage reduction: | H65: =(H63/G63) -> 

Sheet 2. Scoping
B2: Quantification Approach
B5: Index
B6: 1. Overview of process
B7: 2. Scoping emissions
B8: 3. Define the project scenario
B9: 4. Identify components of the project that may yield GHG emissions
B10: 5. Define the baseline scenario
B11: 6. Identify components of the baseline that may yield GHG emissions
B14: Overview of Process
B28: Scoping Emissions
B30: CMIF recognizes that some projects may not be able to quantify direct emission reductions or displacements owing to the nature of their project. As a result, the program offers the following guidance when filling out this template: 1. Generation and energy storage projects must only report Scope 1 emission reductions or displacements to CMIF but applicants are invited to quantify Scope 2 and Scope 3 emissions reductions or displacements as well. 2. Because transmission and distribution infrastructure projects, and projects deploying other technology types often lead to indirect emission reductions or displacements as opposed to direct reductions or displacements, applicants looking to deploy these types of projects are required to quantify Scope 2 and, if applicable, Scope 3 emission reductions or displacements to be considered by the program.
B32: The GHG Protocol classifies emission reductions and displacements by scope:
B34: Scope 1 emissions | C34: Emissions from sources that an organization owns or controls directly. E.g., emissions attributable to the operation and maintenance of wind turbines owned by the applicant. | G34: Direct
B35: Scope 2 emissions | C35: Emissions that a company causes indirectly from where the energy it purchases and uses is produced. E.g., emissions attributable to the combustion of fossil fuels to heat a building. | G35: Indirect
B36: Scope 3 emissions | C36: Emissions that are not produced by the company itself and are not the result of activities from assets owned or controlled by the company, but by those that it's indirectly responsible for up and down its value chain. E.g., emissions attributable to the extraction of minerals needed for the manufacturing of a wind turbine blade. Scope 3 emissions include all sources not within Scope 1 and Scope 2 boundaries. | G36: Indirect
B38: Source: | C38: What are scope 1, 2, and 3 carbon emissions?
B41: 1. Define the project scenario
B43: Describe the project and how it will achieve GHG emission reductions or displacements. Identify risks that may substantially affect the project's estimated GHG emission reductions or displacements.
B45: 2. Identify components of the project that may yield GHG emissions
B47: Please identify all project components that will contribute to project-related emissions by selecting a characterization from the dropdown.
B48: If a component is expected to contribute to project-related emissions, please describe the component, the type of GHG emission reduction/displacement [DROPDOWN], and state all assumptions.
B50: Component Index | C50: Component Category | D50: Characterization [DROPDOWN] | E50: Description | F50: Type of GHG Emission [Dropdown] | G50: Assumptions
B51: P.1. | C51: NEW bulk generation | D51: Non-emitting component | F51: Direct
B52: P.2. | C52: NEW transmission infrastructure
B53: P.3. | C53: NEW distribution infrastructure
B54: P.4. | C54: NEW distributed energy resources (DERs) in front of meter
B55: P.5. | C55: NEW customer premise
B56: P.6. | C56: NEW energy storage
B57: P.7. | C57: Retrofits to existing bulk generation
B58: P.8. | C58: Other
D59: *A characterization must be selected for every component before progressing to the next step.
B60: Variable electricity generation for projects deploying new bulk generation
B62: If your project is looking to deploy new bulk generation and you expect that annual electricity generation will be variable, please enter the expected annual generation in megawatt-hours per year (MWh/year) for each year of operation.
B63: For years during which the project will not be in operation, please leave the field blank.
B65: Year | C65: Annual Electricity Generation [MWh/year]
B66: 2025
B67: 2026
B68: 2027
B69: 2028
B70: 2029
B71: 2030
B72: 2031
B73: 2032
B74: 2033
B75: 2034
B76: 2035
B77: 2036
B78: 2037
B79: 2038
B80: 2039
B81: 2040
B82: 2041
B83: 2042
B84: 2043
B85: 2044
B86: 2045
B87: 2046
B88: 2047
B89: 2048
B90: 2049
B91: 2050
B93: 3. Define the baseline scenario
B95: Describe the baseline and all GHG emissions associated with this baseline. Please note, it is important to ensure that there is functional equivalence between the baseline and the project. 'Functional equivalence' means that the same functionality is provided. *In developing the baseline, the project proponent shall select and justify the assumptions, values and procedures that ensure GHG emission reductions/displacements or removal enhancements are not over-estimated.
B97: 4. Identify components of the baseline that may yield GHG emissions
B99: Please identify all components of the baseline that will release GHG emissions by selecting a characterization from the dropdown. If a component is expected to contribute to baseline emissions, please describe the component, the type of GHG emission reduction/displacement [DROPDOWN], and state all assumptions.
B101: Component Index | C101: Component Category | D101: Characterization [Dropdown] | E101: Description | F101: Type of GHG Emission Reduction/Displacement [Dropdown] | G101: Assumptions
B102: B.1. | C102: EXISTING bulk generation
B103: B.2. | C103: EXISTING transmission infrastructure
B104: B.3. | C104: EXISTING distribution infrastructure
B105: B.4. | C105: EXISTING distributed energy resources (DERs) in front of meter
B106: B.5. | C106: EXISTING customer premise
B107: B.6. | C107: EXISTING energy storage
B108: B.7. | C108: Other
D109: *A characterization must be selected for every component before progressing to the next step.

Sheet 3. Data
B2: Emission Factor Repository
B5: Index
B6: 1. Grid Electricity Emission Factors by Province and Territory (without Biomass and RNG CO2 emissions)
B7: 2. Technology-specific Life-cycle Emission Factors (NREL)
B8: 3. Natural Gas Liquids Combustion Emission Factors
B9: 4. Other Combustion Emission Factors
B10: 5. Mobile Combustion and Freigth Emission Factors
B11: 6. Biomass Emission Factors
B12: 7. Common Conversion Factors
B13: 7.1 Prefixes and Equivalents
B14: 7.2 Distance
B15: 7.3 Area
B16: 7.4 Volume
B17: 7.5 Weight & Mass
B18: 7.6 Vehicle Mileage
B19: 7.7 Energy Terms
B20: 7.8 Liquified Natural Gas (LNG)
B23: Grid Electricity Emission Factors by Province and Territory (without Biomass and RNG CO2 emissions)
B25: - The grid emission intensity corresponds to the ratio of GHG emissions from electricity over the regional sale of electricity. Grid emission intensity = (Combustion emissions from electricity generation by electric utilities + Process emissions from electricity transmission and distribution + (Emissions from electricity generation by industry * Electricity sold by industry to the electric utilities / Electricity generated by industry (own-use and sold to the electric utilities))) / Electricity sold by electric utilities to consumers (including generated by industry).
B26: - These factors correspond to the 'Additional Measures' modelling scenario, which is based on the reference scenario but also accounts for policies and measures that are under development and for which there is enough information for the policies and measures to be modelled. (This scenario was selected as the most conservative estimate).
B27: - Electricity flows between regions are indirectly considered by the calculation method but power generation emissions are attributed to the region where the electricity was generated. Thus, all electricity imports contribute to decrease the electricity grid emission intensities in the importing region since the imported electricity comes without emissions. On the contrary, regions using fossil fuels to generate electricity tend to increase their electricity grid emission intensities when they export electricity since the emissions of exported electricity are allocated to the exporting region.
B29: Envrionment and Climate Change Canada Data Catalogue; Electricity Grid Intensities
B31: Average Grid Intensity Factor (tCO2e/MWh) by Province and Territory | C31: 2025 | D31: 2026 | E31: 2027 | F31: 2028 | G31: 2029 | H31: 2030 | I31: 2031 | J31: 2032 | K31: 2033 | L31: 2034 | M31: 2035 | N31: 2036 | O31: 2037 | P31: 2038 | Q31: 2039 | R31: 2040 | S31: 2041 | T31: 2042 | U31: 2043 | V31: 2044 | W31: 2045 | X31: 2046 | Y31: 2047 | Z31: 2048 | AA31: 2049 | AB31: 2050
B32: Alberta | C32: 0.1798 | D32: 0.1901 | E32: 0.1555 | F32: 0.1435 | G32: 0.1486 | H32: 0.1485 | I32: 0.1092 | J32: 0.1034 | K32: 0.0971 | L32: 0.0889 | M32: 0.0591 | N32: 0.0565 | O32: 0.0533 | P32: 0.0493 | Q32: 0.0471 | R32: 0.0454 | S32: 0.0427 | T32: 0.0398 | U32: 0.0347 | V32: 0.0274 | W32: 0.0264 | X32: 0.0257 | Y32: 0.025 | Z32: 0.0245 | AA32: 0.024 | AB32: 0.0418
B33: British Columbia | C33: 0.0456 | D33: 0.0429 | E33: 0.0407 | F33: 0.0397 | G33: 0.0368 | H33: 0.0319 | I33: 0.0305 | J33: 0.0292 | K33: 0.0274 | L33: 0.0265 | M33: 0.0191 | N33: 0.0188 | O33: 0.0185 | P33: 0.0183 | Q33: 0.0182 | R33: 0.0181 | S33: 0.018 | T33: 0.0177 | U33: 0.0175 | V33: 0.0172 | W33: 0.0169 | X33: 0.0167 | Y33: 0.0166 | Z33: 0.0165 | AA33: 0.0164 | AB33: 0.0161
B34: Manitoba | C34: 0 | D34: 0 | E34: 0 | F34: 0 | G34: 0 | H34: 0 | I34: 0 | J34: 0 | K34: 0 | L34: 0 | M34: 0 | N34: 0 | O34: 0 | P34: 0 | Q34: 0 | R34: 0 | S34: 0 | T34: 0 | U34: 0 | V34: 0 | W34: 0 | X34: 0 | Y34: 0 | Z34: 0 | AA34: 0 | AB34: 0
B35: New Brunswick | C35: 0.2714 | D35: 0.2554 | E35: 0.2518 | F35: 0.2502 | G35: 0.1293 | H35: 0.085 | I35: 0.0724 | J35: 0.0638 | K35: 0.0538 | L35: 0.0488 | M35: 0.0384 | N35: 0.0359 | O35: 0.0335 | P35: 0.0333 | Q35: 0.038 | R35: 0.0389 | S35: 0.037 | T35: 0.0233 | U35: 0.0233 | V35: 0.0234 | W35: 0.0234 | X35: 0.0224 | Y35: 0.0225 | Z35: 0.0226 | AA35: 0.0226 | AB35: 0.0226
B36: Newfoundland and Labrador | C36: 0.0092 | D36: 0.0093 | E36: 0.0092 | F36: 0.0177 | G36: 0.0105 | H36: 0 | I36: 0 | J36: 0 | K36: 0 | L36: 0 | M36: 0 | N36: 0 | O36: 0 | P36: 0 | Q36: 0 | R36: 0 | S36: 0 | T36: 0 | U36: 0 | V36: 0 | W36: 0 | X36: 0 | Y36: 0 | Z36: 0 | AA36: 0 | AB36: 0
B37: Northwest Territories | C37: 0 | D37: 0 | E37: 0 | F37: 0 | G37: 0 | H37: 0 | I37: 0 | J37: 0 | K37: 0 | L37: 0 | M37: 0 | N37: 0 | O37: 0 | P37: 0.0041 | Q37: 0.0297 | R37: 0.0624 | S37: 0.0285 | T37: 0.0163 | U37: 0.0077 | V37: 0.0075 | W37: 0.021 | X37: 0.027 | Y37: 0.0261 | Z37: 0.0214 | AA37: 0.0202 | AB37: 0.0493
B38: Nova Scotia | C38: 0.4791 | D38: 0.4535 | E38: 0.4195 | F38: 0.3945 | G38: 0.1653 | H38: 0.1155 | I38: 0.0916 | J38: 0.093 | K38: 0.0765 | L38: 0.0654 | M38: 0.0012 | N38: -0.0004 | O38: 0.0013 | P38: 0 | Q38: 0 | R38: 0 | S38: 0 | T38: 0 | U38: 0 | V38: 0 | W38: 0 | X38: 0 | Y38: 0 | Z38: 0 | AA38: 0 | AB38: 0
B39: Nunavut | C39: 0.5114 | D39: 0.5235 | E39: 0.5337 | F39: 0.5437 | G39: 0.5386 | H39: 0.5387 | I39: 0.5296 | J39: 0.5377 | K39: 0.5386 | L39: 0.5527 | M39: 0.561 | N39: 0.5645 | O39: 0.5612 | P39: 0.5392 | Q39: 0.5409 | R39: 0.5485 | S39: 0.5544 | T39: 0.5605 | U39: 0.5515 | V39: 0.5324 | W39: 0.5236 | X39: 0.5128 | Y39: 0.5019 | Z39: 0.4901 | AA39: 0.4867 | AB39: 0.4772
B40: Ontario | C40: 0.1178 | D40: 0.1059 | E40: 0.1157 | F40: 0.1033 | G40: 0.0966 | H40: 0.075 | I40: 0.051 | J40: 0.0467 | K40: 0.0393 | L40: 0.0315 | M40: 0.0229 | N40: 0.022 | O40: 0.0213 | P40: 0.0209 | Q40: 0.0205 | R40: 0.0202 | S40: 0.02 | T40: 0.0198 | U40: 0.0196 | V40: 0.0193 | W40: 0.0191 | X40: 0.0188 | Y40: 0.0186 | Z40: 0.0184 | AA40: 0.0181 | AB40: 0.0491
B41: Prince Edward Island | C41: 0 | D41: 0 | E41: 0 | F41: 0.0001 | G41: 0 | H41: 0 | I41: 0 | J41: 0 | K41: 0 | L41: 0 | M41: 0 | N41: 0 | O41: 0 | P41: 0 | Q41: 0 | R41: 0 | S41: 0 | T41: 0 | U41: 0 | V41: 0 | W41: 0 | X41: 0 | Y41: 0 | Z41: 0 | AA41: 0 | AB41: 0
B42: Québec | C42: 0.0128 | D42: 0.0132 | E42: 0.0144 | F42: 0.0168 | G42: 0.019 | H42: 0.0215 | I42: 0.0214 | J42: 0.0212 | K42: 0.0211 | L42: 0.0209 | M42: 0.0188 | N42: 0.0187 | O42: 0.0186 | P42: 0.0186 | Q42: 0.0185 | R42: 0.0185 | S42: 0.0186 | T42: 0.0187 | U42: 0.0167 | V42: 0.016 | W42: 0.016 | X42: 0.016 | Y42: 0.0159 | Z42: 0.0159 | AA42: 0.0159 | AB42: 0.0157
B43: Saskatchewan | C43: 0.5255 | D43: 0.5241 | E43: 0.5106 | F43: 0.4003 | G43: 0.3738 | H43: 0.1627 | I43: 0.1521 | J43: 0.1205 | K43: 0.1086 | L43: 0.0972 | M43: 0.0529 | N43: 0.0503 | O43: 0.0476 | P43: 0.0442 | Q43: 0.0403 | R43: 0.024 | S43: 0.0199 | T43: 0.0171 | U43: 0.017 | V43: 0.0041 | W43: 0.0024 | X43: 0.0022 | Y43: 0.0018 | Z43: 0.0022 | AA43: 0.0034 | AB43: 0.0324
B44: Yukon | C44: 0.0446 | D44: 0.0776 | E44: 0.1132 | F44: 0.1339 | G44: 0.1324 | H44: 0.1257 | I44: 0.0922 | J44: 0.0623 | K44: 0.0616 | L44: 0.0619 | M44: 0.063 | N44: 0.0612 | O44: 0.0642 | P44: 0.0648 | Q44: 0.0649 | R44: 0.0626 | S44: 0.0541 | T44: 0.047 | U44: 0.0451 | V44: 0.0417 | W44: 0.0378 | X44: 0.0356 | Y44: 0.033 | Z44: 0.0322 | AA44: 0.0306 | AB44: 0.03
B47: Technology-specific Life-cycle Emission Factors (NREL)
B49: National Renewable Energy Laboratory; Life Cycle Emissions Factors for Electricity Generation Technologies
B51: Generation Technology | C51: Life Cycle Emission Factor [tCO2e/MWh]
B52: Onshore Wind | C52: 0.012
B53: Offshore Wind | C53: 0.019
B54: Solar PV | C54: 0.04889
B55: Concentrating Solar Power (Parabolic Through) | C55: 0.026
B56: Concentrating Solar Power (Power Tower) | C56: 0.038
B57: Concentrating Solar Power (Parabolic Dish) | C57: 0.015
B58: Hydropower (Reservoir) | C58: 0.013
B59: Hydropower (Run-of-River) | C59: 0.023
B60: Geothermal (EGS Binary) | C60: 0.032
B61: Geothermal (HT Flash) | C61: 0.047
B62: Geothermal (HT Binary) | C62: 0.011
B63: Ocean | C63: 0.008
B64: Biopower (Co-firing) | C64: 0.17
B65: Biopower (Direct Combustion) | C65: 0.042
B66: Biopower (Gasification) | C66: 0.04
B67: Biopower (Gasification Engine) | C67: 0.095
B68: Pumped-storage Hydropower | C68: 0.0074
B69: Natural Gas-fired Combined Cycle (NGCC) | C69: 0.45
B70: Natural Gas-fired Combustion Turbine (NGCT) | C70: 0.6045
B71: Natural Gas-fired Combined Cycle with Carbon Capture and Storage (NGCC-CCS) | C71: 0.111
B72: Liquified Natural Gas-fired Combined Cycle (LNGCC) | C72: 0.501
B73: Liquified Natural Gas-fired Combustion Turbine (LNGCT) | C73: 0.651
B74: Natural Gas (Unspecified) | C74: 0.3985
B77: Natural Gas Liquids Combustion Emission Factors
B79: NATIONAL INVENTORY REPORT 1990 - 2022: GREENHOUSE GAS SOURCES AND SINKS IN CANADA [PART 2]
B81: Liquid | C81: CO2e Emission Factor (gCO2e/L)
B82: Propane
B83: Residential | C83: 1544.376
B84: All Other Uses | C84: 1544.292
B85: Ethane | C85: 1015.292
B86: Butane | C86: 1776.292
B89: Other Combustion Emission Factors
B91: NATIONAL INVENTORY REPORT 1990 - 2022: GREENHOUSE GAS SOURCES AND SINKS IN CANADA [PART 2]
B93: Liquid | C93: CO2e Emission Factor (gCO2e/L)
B94: Light Fuel Oil
B95: Electric Utilities | C95: 2766.255
B96: Industrial | C96: 2761.383
B97: Producer Consumption | C97: 2678.383
B98: Residential | C98: 2755.318
B99: Forestry, Construction, Commercial/Institutional, Other | C99: 2761.943
B100: Heavy Fuel Oil
B101: Electric Utilities | C101: 3173.912
B102: Industrial | C102: 3176.32
B103: Producer Consumption | C103: 3210.32
B104: Forestry, Construction, Commercial/Institutional, Other | C104: 3174.556
B105: Kerosene
B106: Electric Utilities | C106: 2568.383
B107: Industrial | C107: 2568.383
B108: Producer Consumption | C108: 2568.383
B109: Residential | C109: 2562.318
B110: Forestry, Construction, Commercial/Institutional, Other | C110: 2568.943
B111: Diesel - Refineries and Others | C111: 2689.014
B112: Diesel - Upgrades | C112: 2689.014
B113: Petroleum Coke - Upgrading Facilities | C113: 3503.72
B114: Petroleum Coke - Refineries and Others | C114: 3836.6475
B115: Still Gas - Refineries and Others | C115: 2.9963
B116: Still Gas - Upgrades | C116: 2.146392
B117: Motor Gasoline | C117: 2315.1
B120: Mobile Combustion and Freight Emission Factors
B122: NATIONAL INVENTORY REPORT 1990 - 2022: GREENHOUSE GAS SOURCES AND SINKS IN CANADA [PART 2]
B124: Mode of Transportation | C124: CO2e Emission Factor (g/L)
B125: Road Transport
B126: Gasoline Vehicles
B127: Light Duty Gasoline Vehicles (LDGVs)
B128: Tier 3 | C128: 2312.263 | D128: *Tier 3: Model years 2017 and later. Standards are designed to reduce both tailpipe and evaporative emissions and aims to reduce hydrocarbons (HC), carbon monoxide (CO), nitrogen oxides (NOx), and particulate matter (PM) emissions significantly.
B129: Tier 2 | C129: 2317.041008 | D129: *Tier 2: Model years 2004-2016. Standards required the use of cleaner fuels and aimed to reduce hydrocarbons (HC), carbon monoxide (CO), nitrogen oxides (NOx), and particulate matter (PM) emissions.
B130: Tier 1 | C130: 2439.084136 | D130: *Tier 1: Model years 1994-2003. Standards focused on reducing pollutants including hydrocarbons (HC), carbon monoxide (CO), nitorgen oxides (NOx), and particulate matter (PM).
B131: Tier 0 | C131: 2491.16 | D131: *Tier 0: Model years 1981-1993. Standards focused on reducing emissions of hydrocarbons (HC), carbon monoxide (CO), and nitrogen oxides (NOx), setting the foundation for subsequent, more stringent tiers.
B132: Oxidation Catalyst | C132: 2374.86
B133: Non-catalytic Controlled | C133: 2327.6
B134: Light Duty Gasoline Trucks (LDGTs)
B135: Tier 3 | C135: 2312.263 | D135: *Tier 3: Model years 2017 and later. Standards are designed to reduce both tailpipe and evaporative emissions and aims to reduce hydrocarbons (HC), carbon monoxide (CO), nitrogen oxides (NOx), and particulate matter (PM) emissions significantly.
B136: Tier 2 | C136: 2317.041008 | D136: *Tier 2: Model years 2004-2016. Standards required the use of cleaner fuels and aimed to reduce hydrocarbons (HC), carbon monoxide (CO), nitrogen oxides (Nox), and particulate matter (PM) emissions.
B137: Tier 1 | C137: 2468.673583 | D137: *Tier 1: Model years 1994-2003. Standards focused on reducing pollutants including hydrocarbons (HC), carbon monoxide (CO), nitorgen oxides (NOx), and particulate matter (PM).
B138: Tier 0 | C138: 2488.08 | D138: *Tier 0: Model years 1981-1993. Standards focused on reducing emissions of hydrocarbons (HC), carbon monoxide (CO), and nitrogen oxides (NOx), setting the foundation for subsequent, more stringent tiers.
B139: Oxidation Catalyst | C139: 2372.34
B140: Non-catalytic Controlled | C140: 2330.4
B141: Heavy Duty Gasoline Vehicles
B142: Three-way Catalyst | C142: 2362.204
B143: Non-catalytic Controlled | C143: 2327.875
B144: Uncontrolled | C144: 2343.28
B145: Motorcycles
B146: Non-catalytic Controlled | C146: 2339.753
B147: Uncontrolled | C147: 2384.42
B148: Diesel Vehicles
B149: Light Duty Diesel Vehicles (LDDVs)
B150: Advanced Control | C150: 2740.228
B151: Moderate Control | C151: 2738.054
B152: Uncontrolled | C152: 2725.7
B153: Light Duty Diesel Trucks (LDDTs)
B154: Advanced Control | C154: 2740.704
B155: Moderate Control | C155: 2738.054
B156: Uncontrolled | C156: 2725.28
B157: Heavy Duty Diesel Vehicles (HDDVs)
B158: Advanced Control | C158: 2723.595
B159: Moderate Control | C159: 2706.15
B160: Uncontrolled | C160: 2704.575
B161: Natural Gas Vehicles | C161: 2.1623
B162: Propane Vehicles | C162: 1540.34
B163: Off-road Transport
B164: Off-road Gasoline 2-stroke | C164: 2606.3826
B165: Off-road Gasoline 4-stroke | C165: 2466.623
B166: Off-road Diesel < 19kW | C166: 2688.420115
B167: Off-road Diesel ≥ 19kW, Tier 1 - 3 | C167: 2688.420115
B168: Off-road Diesel ≥ 19kW, Tier 4 | C168: 2742.597444
B169: Off-road Lubricating Oil 2-stroke | C169: 3064.56
B170: Off-road Natural Gas | C170: 2.1623
B171: Off-road Propane | C171: 1556.02184
B172: Diesel Locomotive | C172: 2957.357
B173: Marine
B174: Gasoline | C174: 2330.04558
B175: Diesel | C175: 2706.62874
B176: Light Fuel Oil | C176: 2779.499
B177: Heavy Fuel Oil | C177: 3185.6208
B178: Kerosene | C178: 2585.3278
B179: Aviation
B180: Gasoline | C180: 2447.67
B181: Turbo Fuel | C181: 2579.0455
B182: Renewable Fuels
B183: Ethanol | C183: 1517.79
B184: Biodiesel | C184: 2515.295
B187: GHGenius v5.0d
B189: These emission factors may be used where the volume of fuel consumed is unknown but distance travelled is known.
B191: Mode of Transportation | C191: CO2e Emission Factor (g-CO2e/km)
B192: Light Duty Vehicles
B193: Gasoline | C193: 170.5858835
B194: Gasoline Hybrid | C194: 105.4249307
B195: Natural Gas | C195: 143.657278
B196: Propane | C196: 149.2313455
B197: Diesel | C197: 163.5340034
B198: E10 | C198: 164.9727068
B199: Heavy Duty Vehicles
B200: Diesel | C200: 1105.895709
B201: Gasoline | C201: 1340.868042
B202: Natural Gas | C202: 975.2781249
B203: LNG / Diesel (95/5) | C203: 856.6117271
B206: Biomass Emission Factors
B208: NATIONAL INVENTORY REPORT 1990 - 2022: GREENHOUSE GAS SOURCES AND SINKS IN CANADA [PART 2]
B210: Source | C210: Description | D210: Emission Factor (CO2) [g/kg fuel] | E210: Emission Factor (CH4) [g/kg fuel] | F210: Emission Factor (N2O) [g/kg fuel]
B211: Wood Fuel / Wood Waste | C211: Industrial Combustion | D211: 1715 | E211: 0.1 | F211: 0.07
B212: Forest Wildfires | C212: Open Combustion | D212: N/A | E212: N/A | F212: N/A
B213: Controlled Burning | C213: Open Combustion | D213: N/A | E213: N/A | F213: N/A
B214: Spent Pulping Liquor | C214: Industrial Combustion | D214: 1250 | E214: 0.03 | F214: 0.005
B215: Stoves and Fireplaces | C215: Residential Combustion
B216: Conventional Stoves | D216: 1539 | E216: 12.9 | F216: 0.12
B217: Conventional Fireplaces and Inserts | D217: 1539 | E217: 12.9 | F217: 0.12
B218: Stove / Fireplaces with Advanced Technology or Catalytic Control | D218: 1539 | E218: 5.9 | F218: 0.12
B219: Pellet Stove | D219: 1652 | E219: 4.12 | F219: 0.059
B220: Other Wood-burning Equipment | D220: 1539 | E220: 4.12 | F220: 0.059
B222: Notes:
B224: - N/A = Not applicable
B225: - CO2 emissions from biomass combusted for energy or agricultural purposes are not included in inventory totals, whereas CH4 and N2O emisisons from these sources are inventoried under the Energy Sector. All greenhouse gas (GHG) emissions, including CO2 emissions from biomass burned in managed forests (wildfires and controlled burning), are reported under Land-Use, Land-use Change and Forestry (LULUCF) and excluded from national inventory totals.
B228: Common Conversion Factors
B230: Energy conversion tables - Canada Energy Regulator
B232: Prefixes and Equivalents
B234: Prefixes | C234: Equivalents
B235: k (kilo) | C235: 103
B236: M (mega) | C236: 106
B237: G (giga) | C237: 109
B238: T (tera) | C238: 1012
B239: P (peta) | C239: 1015
... 140 more rows

Sheet 4. Examples
B2: Example Calculations
B5: Index
B6: 1. Generation Projects
B7: 1.1 Example #1: Wind
B8: 1.2 Example #2: Solar PV
B9: 1.3 Example #3: Solar PV + Energy Storage
B10: 2. Energy Storage Projects
B11: 2.1 Example #1: Energy Arbitrage in Nova Scotia
B12: 2.2 Example #2: Peak Shaving in Ontario
B13: 2.3 Example #3: Storage for fast frequency regulation in Alberta
B14: 4. Transmisson Projects
B15: 4.1 Example #1: Transmission line upgrade at existing facility
B25: Generation Projects | P25: Energy Storage Projects | AD25: Transmission Infrastructure Project
B29: Example #1: Alberta wind farm | P29: Example #1: Energy Arbitrage in Nova Scotia | AD29: Example #1: Existing facility transmission line upgrade
B31: Description: | P31: Description: | AD31: Description:
B32: This example quantifies the expected annual GHG reductions of a new wind farm in Alberta. | P32: In this example, a BESS is used for energy arbitrage in Nova Scotia. | AD32: In this example, an existing industrial facility currently uses a distribution line to provide 40,000 MWh per year. Its annual energy demand is expected to increase by 500,000 MWh in 2028, for a total of 540,000 MWh. Its operations will end in 2043. The project proposes to decommission the existing distribution line and build a new transmission line to replace it and meet current and anticipated energy demand. Without this proposed transmission line, the facility would use diesel generators to meet increased demand.
B35: Project | H35: Baseline | P35: Project | V35: Baseline | AD35: Project | AJ35: Baseline
B38: Please select component from dropdown below: | H38: Please select component from dropdown below: | P38: Please select component from dropdown below: | V38: Please select component from dropdown below: | AD38: Please select component from dropdown below: | AJ38: Please select component from dropdown below:
B39: NEW bulk generation | D39: Reduction/displacement type: | E39: Direct | H39: EXISTING bulk generation | J39: Reduction/displacement type: | K39: Direct | P39: NEW energy storage | R39: Reduction/displacement type: | S39: Direct | V39: EXISTING bulk generation | X39: Reduction/displacement type: | Y39: Direct | AD39: NEW transmission infrastructure | AF39: Reduction/displacement type: | AG39: Indirect | AJ39: EXISTING distribution infrastructure | AL39: Reduction/displacement type: | AM39: Indirect
B40: P.1. | H40: B.1. | P40: P.6. | V40: B.1. | AD40: P.2. | AJ40: B.7.
B42: Parameter | C42: Value | D42: Unit | E42: Notes | H42: Parameter | I42: Value | J42: Unit | K42: Notes | P42: Parameter | Q42: Value | R42: Unit | S42: Notes | V42: Parameter | W42: Value | X42: Unit | Y42: Notes | AD42: Parameter | AE42: Value | AF42: Unit | AG42: Notes | AJ42: Parameter | AK42: Value | AL42: Unit | AM42: Notes
B43: Amount of electricity generated by new wind turbine | C43: 84000000 | D43: kWh/year | E43: Capacity factor of 37.5% | H43: Amount of electricity generated by new wind turbine | I43: 84000000 | J43: kWh/year | K43: *Assuming new electricity generation will displace equivalent volume of natural gas generation as the marginal resource. | P43: Battery energy capacity | Q43: 250 | R43: MWh | V43: Round trip efficiency | W43: 90 | X43: % | AD43: Amount of electricity consumed from the Yukon grid via a new transmission line | AE43: 540000000 | AF43: kWh/year | AJ43: Amount of electricity consumed from the Yukon grid via existing distribution line | AK43: 40000000 | AL43: kWh/year
B44: Unit conversion | C44: =C43/1000 -> 84000 | D44: MWh/year | H44: Unit conversion | I44: =I43/1000 -> 84000 | J44: MWh/year | P44: Battery storage duration | Q44: 4 | R44: hours | V44: Electricity displaced by battery discharging | W44: =Q46*W43/100 -> 22500 | X44: MWh/year | AD44: Unit conversion | AE44: =AE43/1000 -> 540000 | AF44: MWh/year | AG44: Convert kWh to MWh | AJ44: Unit conversion | AK44: =AK43/1000 -> 40000 | AL44: MWh/year | AM44: Convert kWh to MWh
P45: Planned cycles per year | Q45: 100 | R45: cycles/year
P46: Electricity used for charging | Q46: =Q43*Q45 -> 25000 | R46: MWh/year
B49: *Add parameter(s) as required | H49: *Add parameter(s) as required | P49: *Add parameter(s) as required | V49: *Add parameter(s) as required | AD49: *Add parameter(s) as required | AJ49: *Add parameter(s) as required
E50: EF Description | K50: EF Description | S50: EF Description | Y50: EF Description | AG50: EF Description | AM50: EF Description
B51: Emission factor (EF) | C51: 0.012 | D51: tCO2e/MWh | E51: Life cycle emission factor for onshore wind projects per NREL. | H51: Emission factor (EF) | I51: 0.3985 | J51: tCO2e/MWh | K51: Life cycle emission factor for natural gas (unspecified) per NREL, assuming new electricity generation will displace equivalent volume of natural gas generation as the marginal resource. | P51: Emission factor (EF) | Q51: =AVERAGE('3. Data'!D38:N38) -> 0.1705090909 | R51: tCO2e/MWh | S51: Average grid intensity factor for Nova Scotia over the lifespan of the BESS (2026-2036). This is a conservative estimate as the battery is charged during periods of low demand when actual grid emission intensity is likely to be lower. | V51: Emission factor (EF) | W51: 0.3985 | X51: tCO2e/MWh | Y51: Life cycle emission factor for natural gas (unspecified), assuming electricity in battery will displace an equivalent amount of electricity generated by natural gas, as the marginal resource during peak periods. | AD51: Emission factor (EF) | AE51: =AVERAGE('3. Data'!F44:U44) -> 0.07480625 | AF51: tCO2e/MWh | AG51: Yukon grid average EF from 2028 to 2043 ('3. Data'!F44:U44) | AJ51: Emission factor (EF) | AK51: =AVERAGE('3. Data'!F44:U44) -> 0.07480625 | AL51: tCO2e/MWh | AM51: Yukon grid average EF from 2028 to 2043 ('3. Data'!F44:U44)
B53: Emissions (annual) | C53: =C44*C51 -> 1008 | D53: tCO2e/year | H53: Emissions (annual) | I53: =I44*I51 -> 33474 | J53: tCO2e/year | P53: Emissions (annual) | Q53: =Q46*Q51 -> 4262.727273 | R53: tCO2e/year | V53: Emissions (annual) | W53: =W44*W51 -> 8966.25 | X53: tCO2e/year | AD53: Emissions (annual) | AE53: =AE44*AE51 -> 40395.375 | AF53: tCO2e/year | AJ53: Emissions (annual) | AK53: =AK44*AK51 -> 2992.25 | AL53: tCO2e/year
B56: DIRECT: | H56: DIRECT: | P56: DIRECT: | V56: DIRECT: | AD56: Please select component from dropdown below: | AJ56: Please select component from dropdown below:
B57: Total project emissions (annual): | C57: =SUMIF(E39,"Direct",C53) -> 1008 | D57: tCO2e/year | H57: Total baseline emissions (annual): | I57: =SUMIF(K39,"Direct",I53) -> 33474 | J57: tCO2e/year | P57: Total project emissions (annual): | Q57: =SUMIF(S39,"Direct",Q53) -> 4262.727273 | R57: tCO2e/year | V57: Total baseline emissions (annual): | W57: =SUMIF(Y39,"Direct",W53) -> 8966.25 | X57: tCO2e/year | AD57: Other | AF57: Reduction/displacement type: | AG57: Indirect | AJ57: EXISTING bulk generation | AL57: Reduction/displacement type: | AM57: Direct
AD58: P.2. | AJ58: B.7.
B59: INDIRECT: | H59: INDIRECT: | P59: INDIRECT: | V59: INDIRECT:
B60: Total project emissions (annual): | C60: =SUMIF(E39,"Indirect",C53) -> 0 | D60: tCO2e/year | H60: Total baseline emissions (annual): | I60: =SUMIF(K39,"Indirect",I53) -> 0 | J60: tCO2e/year | P60: Total project emissions (annual): | Q60: =SUMIF(S39,"Indirect",Q53) -> 0 | R60: tCO2e/year | V60: Total baseline emissions (annual): | W60: =SUMIF(Y39,"Indirect",W53) -> 0 | X60: tCO2e/year | AD60: Parameter | AE60: Value | AF60: Unit | AG60: Notes | AJ60: Parameter | AK60: Value | AL60: Unit | AM60: Notes
AJ61: Amount of electricity generated by diesel generators | AK61: 500000 | AL61: MWh/year | AM61: Increased electricity demand starting in 2028
AJ62: Unit conversion | AK62: =AK61*1000 -> 500000000 | AL62: kWh/year | AM62: Converts to kWh/year. 1 MWh = 1000 kWh
AJ63: Unit conversion | AK63: =AK62*0.4 -> 200000000 | AL63: L/year | AM63: Converts to L/year. Assume 1 kWh per 0.4 L diesel
AJ64: Emission factor for light fuel oil | AK64: ='3. Data'!C96 -> 2761.383 | AL64: gCO2e/L | AM64: From Other Combustion Emission Factors, light fuel oil - industrial ('3. Data'!C96).
B65: Example #2: Alberta Solar PV | P65: Example #2: Peak Shaving in Ontario | AJ65: Unit conversion | AK65: =AK64*10^-6 -> 0.002761383 | AL65: tCO2e/L | AM65: This EF is giving in gCO2e/L, so it is divided by 10^6 to convert to tCO2e/L
B67: Description: | P67: Description: | AD67: *Add parameter(s) as required | AJ67: *Add parameter(s) as required
B68: This example quantifies the expected annual GHG reductions of a new solar PV farm in Alberta. | P68: This example involves a utility-scale BESS for peak shaving in Ontario from 2026-2036. | AG68: EF Description | AM68: EF Description
AD69: Emission factor (EF) | AF69: tCO2e/MWh | AJ69: Emission factor (EF) | AK69: =AK65 -> 0.002761383 | AL69: tCO2e/L | AM69: Described above
B71: Project | H71: Baseline | P71: Project | V71: Baseline | AD71: Emissions (annual) | AE71: =AE66*AE69 -> 0 | AF71: tCO2e/year | AJ71: Emissions (annual) | AK71: =AK63*AK69 -> 552276.6 | AL71: tCO2e/year
B74: Please select component from dropdown below: | H74: Please select component from dropdown below: | P74: Please select component from dropdown below: | V74: Please select component from dropdown below: | AD74: DIRECT: | AJ74: DIRECT:
B75: NEW bulk generation | D75: Reduction/displacement type: | E75: Direct | H75: EXISTING bulk generation | J75: Reduction/displacement type: | K75: Direct | P75: NEW energy storage | R75: Reduction/displacement type: | S75: Direct | V75: EXISTING bulk generation | X75: Reduction/displacement type: | Y75: Direct | AD75: Total project emissions (annual): | AE75: =SUMIF(AG39,"Direct",AE53) -> 0 | AF75: tCO2e/year | AJ75: Total baseline emissions (annual): | AK75: =SUMIF(AM57,"Direct",AK71) -> 552276.6 | AL75: tCO2e/year
B76: P.1. | H76: B.1. | P76: P.6. | V76: B.1.
AD77: INDIRECT: | AJ77: INDIRECT:
B78: Parameter | C78: Value | D78: Unit | E78: Notes | H78: Parameter | I78: Value | J78: Unit | K78: Notes | P78: Parameter | Q78: Value | R78: Unit | S78: Notes | V78: Parameter | W78: Value | X78: Unit | Y78: Notes | AD78: Total project emissions (annual): | AE78: =SUMIF(AG39,"Indirect",AE53) -> 40395.375 | AF78: tCO2e/year | AJ78: Total baseline emissions (annual): | AK78: =SUMIF(AM39,"Indirect",AK53) -> 2992.25 | AL78: tCO2e/year
B79: Amount of electricity generated by new solar farm | C79: 25000000 | D79: kWh/year | E79: Capacity factor of 20% | H79: Amount of electricity generated by new wind turbine | I79: 25000000 | J79: kWh/year | P79: Battery energy capacity | Q79: 800 | R79: MWh | V79: Round trip efficiency | W79: 86 | X79: %
B80: Unit conversion | C80: =C79/1000 -> 25000 | D80: MWh/year | H80: Unit conversion | I80: =I79/1000 -> 25000 | J80: MWh/year | P80: Storage duration | Q80: 4 | R80: hours | V80: Electricity displaced by battery discharging | W80: =Q84*W79/100 -> 184946.2366 | X80: MWh/year
P81: Planned cycles per year | Q81: 250 | R81: cycles/year
P82: Capacity per year | Q82: 200000 | R82: MWh/year
P83: Charging efficiency | Q83: 93 | R83: %
P84: Electricity consumed for charging | Q84: =Q82/Q83*100 -> 215053.7634 | R84: MWh/year
B85: *Add parameter(s) as required | H85: *Add parameter(s) as required | P85: *Add parameter(s) as required | V85: *Add parameter(s) as required
E86: EF Description | K86: EF Description | S86: EF Description | Y86: EF Description
B87: Emission factor (EF) | C87: ='3. Data'!C54 -> 0.04889 | D87: tCO2e/MWh | E87: Life cycle emission factor for solar PV per NREL | H87: Emission factor (EF) | I87: 0.3985 | J87: tCO2e/MWh | K87: Life cycle emission factor for natural gas (unspecified), assuming new electricity generation will displace equivalent volume of natural gas generation as the marginal resource. | P87: Emission factor (EF) | Q87: =AVERAGE('3. Data'!D40:N40) -> 0.06453636364 | R87: tCO2e/MWh | S87: Average grid intensity factor for Ontario over the lifespan of the BESS (2026-2036). This is a conservative estimate as the battery is charged during periods of low demand when actual grid emission intensity is likely to be lower. | V87: Emission factor (EF) | W87: 0.3985 | X87: tCO2e/MWh | Y87: Life cycle emission factor for natural gas (unspecified), assuming electricity in battery will displace an equivalent amount of electricity generated by natural gas, as the marginal resource during peak periods.
B89: Emissions (annual) | C89: =C80*C87 -> 1222.25 | D89: tCO2e/year | H89: Emissions (annual) | I89: =I80*I87 -> 9962.5 | J89: tCO2e/year | P89: Emissions (annual) | Q89: =Q84*Q87 -> 13878.78788 | R89: tCO2e/year | V89: Emissions (annual) | W89: =W80*W87 -> 73701.07527 | X89: tCO2e/year
B92: DIRECT: | H92: DIRECT: | P92: DIRECT: | V92: DIRECT:
B93: Total project emissions (annual): | C93: =SUMIF(E75,"Direct",C89) -> 1222.25 | D93: tCO2e/year | H93: Total baseline emissions (annual): | I93: =SUMIF(K75,"Direct",I89) -> 9962.5 | J93: tCO2e/year | P93: Total project emissions (annual): | Q93: =SUMIF(S75,"Direct",Q89) -> 13878.78788 | R93: tCO2e/year | V93: Total baseline emissions (annual): | W93: =SUMIF(Y75,"Direct",W89) -> 73701.07527 | X93: tCO2e/year
B95: INDIRECT: | H95: INDIRECT: | P95: INDIRECT: | V95: INDIRECT:
B96: Total project emissions (annual): | C96: =SUMIF(E75,"Indirect",C89) -> 0 | D96: tCO2e/year | H96: Total baseline emissions (annual): | I96: =SUMIF(K75,"Indirect",I89) -> 0 | J96: tCO2e/year | P96: Total project emissions (annual): | Q96: =SUMIF(S75,"Indirect",Q89) -> 0 | R96: tCO2e/year | V96: Total baseline emissions (annual): | W96: =SUMIF(Y75,"Indirect",W89) -> 0 | X96: tCO2e/year
B101: Example #3: Solar PV + Energy Storage | P101: Example #3: BESS for Grid Frequency Regulation
B103: Description: | P103: Description:
B104: This example quantifies the annual GHG emission reductions of a solar farm + BESS in Alberta. | P104: A battery in Alberta is used for fast-response grid frequency regulation.
B107: Project | H107: Baseline | P107: Project | V107: Baseline
B110: Please select component from dropdown below: | H110: Please select component from dropdown below: | P110: Please select component from dropdown below: | V110: Please select component from dropdown below:
B111: NEW bulk generation | D111: Reduction/displacement type: | E111: Direct | H111: EXISTING bulk generation | J111: Reduction/displacement type: | K111: Direct | P111: NEW energy storage | R111: Reduction/displacement type: | S111: Direct | V111: EXISTING bulk generation | X111: Reduction/displacement type: | Y111: Direct
B112: P.1. | H112: B.1. | P112: P.6. | V112: B.1.
B114: Parameter | C114: Value | D114: Unit | E114: Notes | H114: Parameter | I114: Value | J114: Unit | K114: Notes | P114: Parameter | Q114: Value | R114: Unit | S114: Notes | V114: Parameter | W114: Value | X114: Unit | Y114: Notes
B115: Amount of electricity generated by the solar | C115: 25000000 | D115: kWh/year | E115: Capacity factor of 37.5% | H115: Amount of electricity generated by the solar | I115: 25000000 | J115: kWh/year | P115: Energy capacity | Q115: 120 | R115: MWh | V115: Round trip efficiency | W115: 88 | X115: %
B116: Unit conversion | C116: =C115/1000 -> 25000 | D116: MWh/year | H116: Unit conversion | I116: =I115/1000 -> 25000 | J116: MWh/year | P116: Storage duration | Q116: 4 | R116: hours | V116: Electricity displaced by battery discharging | W116: =Q120*W115/100 -> 56774.19355
P117: Planned cycles per year | Q117: 500 | R117: cycles/year
P118: Capacity per year | Q118: 60000 | R118: MWh/year
P119: Charging efficiency | Q119: 93 | R119: %
P120: Electricity consumed for charging | Q120: =Q118/Q119*100 -> 64516.12903 | R120: MWh/year
B121: *Add parameter(s) as required | H121: *Add parameter(s) as required | P121: *Add parameter(s) as required | V121: *Add parameter(s) as required
E122: EF Description | K122: EF Description | S122: EF Description | Y122: EF Description
B123: Emission factor (EF) | C123: ='3. Data'!C54 -> 0.04889 | D123: tCO2e/MWh | E123: Life cycle emission factor for solar PV per NREL | H123: Emission factor (EF) | I123: 0.3985 | J123: tCO2e/MWh | K123: Life cycle emission factor for natural gas (unspecified), assuming new electricity generation will displace equivalent volume of natural gas generation as the marginal resource. | P123: Emission factor (EF) | Q123: =AVERAGE('3. Data'!H32:R32) -> 0.07798181818 | R123: tCO2e/MWh | S123: AB average grid emission factor from 2030 to 2040. | V123: Emission factor (EF) | W123: 0.3985 | X123: tCO2e/MWh | Y123: Life cycle emission factor for natural gas (unspecified), assuming electricity in battery will displace an equivalent amount of electricity generated by natural gas, as the FFR resource. This number may become lower as more low-carbon energy resources capable of FFR come online - this evolution is reflected in tab 6.
B125: Emissions (annual) | C125: =C116*C123 -> 1222.25 | D125: tCO2e/year | H125: Emissions (annual) | I125: =I116*I123 -> 9962.5 | J125: tCO2e/year | P125: Emissions (annual) | Q125: =Q120*Q123 -> 5031.085044 | R125: tCO2e/year | V125: Emissions (annual) | W125: =W116*W123 -> 22624.51613 | X125: tCO2e/year
B128: Please select component from dropdown below: | H128: Please select component from dropdown below: | P128: DIRECT: | V128: DIRECT:
B129: NEW energy storage | D129: Reduction/displacement type: | E129: Direct | H129: EXISTING bulk generation | J129: Reduction/displacement type: | K129: Direct | P129: Total project emissions (annual): | Q129: =SUMIF(S111,"Direct",Q125) -> 5031.085044 | R129: tCO2e/year | V129: Total baseline emissions (annual): | W129: =SUMIF(Y111,"Direct",W125) -> 22624.51613 | X129: tCO2e/year
B130: P.1. | H130: B.1.
P131: INDIRECT: | V131: INDIRECT:
B132: Parameter | C132: Value | D132: Unit | E132: Notes | H132: Parameter | I132: Value | J132: Unit | K132: Notes | P132: Total project emissions (annual): | Q132: =SUMIF(S111,"Indirect",Q125) -> 0 | R132: tCO2e/year | V132: Total baseline emissions (annual): | W132: =SUMIF(Y111,"Indirect",W125) -> 0 | X132: tCO2e/year
B133: Clipped generation per year | C133: 1000000 | D133: kWh/year | E133: From project economic model | H133: Electricity consumed for charging | I133: =SUM(C133:C135) -> 4500000 | J133: kWh/year
B134: Solar arbitrage per year | C134: 2000000 | D134: kWh/year | E134: From project economic model | H134: Unit conversion | I134: =I133/1000 -> 4500 | J134: MWh/year
B135: Grid arbitrage per year | C135: 1500000 | D135: kWh/year | E135: From project economic model | H135: Round trip efficiency | I135: 90 | J135: %
B136: Clipped generation emission factor | C136: ='3. Data'!C54 -> 0.04889 | D136: tCO2e/MWh | E136: Life cycle emission factor for solar PV per NREL | H136: Generation displaced by the BESS | I136: =I134*I135/100 -> 4050 | J136: MWh/year
B137: Solar arbitrage emission factor | C137: ='3. Data'!C69 -> 0.45 | D137: tCO2e/MWh | E137: Solar energy is stored during periods of low prices. It displaces grid energy that would otherwise be stored for grid arbitrage. Emission intensity during these periods varies but is largely based on natural gas-fired combined cycle generation, which is the EF used here.
B138: Grid arbitrage emission factor | C138: ='3. Data'!C69 -> 0.45 | D138: tCO2e/MWh | E138: Similar to the above, emission intensity during low-price periods varies but is largely based on natural gas-fired combined cycle generation at the margin, which is the EF used here. This is a conservative assumption as it does not take into account wind generation that can also be part of the marginal resource mix during periods of low demand.
B139: Weighted average emission factor | C139: =(C136*C133+C137*C134+C138*C135)/(C133+C134+C135) -> 0.3608644444 | D139: tCO2e/MWh
B140: Electricity consumed for charging | C140: =C133+C134+C135 -> 4500000 | D140: kWh/year
B141: Unit conversion | C141: =C140/1000 -> 4500 | D141: MWh/year
B146: *Add parameter(s) as required | H146: *Add parameter(s) as required
E147: EF Description | K147: EF Description
B148: Emission factor (EF) | C148: =C139 -> 0.3608644444 | D148: tCO2e/MWh | E148: Weighted average emission factor as calculated above | H148: Emission factor (EF) | I148: 0.7 | J148: tCO2e/MWh | K148: The BESS releases stored energy during peak demand periods, when emission intensity is driven by coal plants converted to use gas for its boilers per the most recent AESO Long Term Outlook. Converted coal-to-gas plants operate with lower efficiency than typical gas plants. Coal-to-gas planned retirements are reflected in tab 6. The emission factor used here yields a conservative estimate of baseline emissions as line losses are not taken into account.
B150: Emissions (annual) | C150: =C148*C141 -> 1623.89 | D150: tCO2e/year | H150: Emissions (annual) | I150: =I148*I136 -> 2835 | J150: tCO2e/year
B153: DIRECT: | H153: DIRECT:
B154: Total project emissions (annual): | C154: =SUMIF(E111,"Direct",C125)+SUMIF(E129,"Direct",C150) -> 2846.14 | D154: tCO2e/year | H154: Total baseline emissions (annual): | I154: =SUMIF(K111,"Direct",I125)+SUMIF(K129,"Direct",I150) -> 12797.5 | J154: tCO2e/year
B156: INDIRECT: | H156: INDIRECT:
B157: Total project emissions (annual): | C157: 0 | D157: tCO2e/year | H157: Total baseline emissions (annual): | I157: =SUMIF(K129,"Indirect",I150) -> 0 | J157: tCO2e/year

Sheet 5. Calculations
B2: GHG Balance
B5: REFERENCE DOCUMENTS
B7: 1. CSA ISO 14064-2:20 | C7: Specification with guidance at the project level for quantification, monitoring and reporting of greenhouse gas emission reductions or removal enhancements.
B8: 2. The GHG Protocol for Project Accounting | C8: The Project Protocol provides specific principles, concepts, and methods for quantifying and reporting GHG reductions from climate change mitigation projects.
B11: Instructions:
B13: STEP 1. In the project template, select a component from the dropdown. STEP 2. Fill in the table by specifying the parameter, value, unit, and inserting notes, where applicable. Please refer to the examples in the '4. Examples' sheet for guidance on how to fill out the table. *Please note that if you would like to use 'Variable Electricity Generation Estimates' (recorded in the '2. Scoping' sheet), please proceed to STEP 3. STEP 3. Select an emission factor from the '3. Data' sheet and specify its units. Please describe the emission factor in the 'EF Description' field. *Please note that if you would like to use 'Average Grid Intensity Factors' (recorded in cells C32 - AB44 in the '3. Data' sheet), please click on Button 1. ('1. Use Average Grid Intensity Factors'). Note that the outputs from this calculation will be displayed on the '6. Summary' sheet. *If you entered 'Variable Electricity Generation Estimates' in the '2. Scoping' sheet and would like to use these values in your calculation, please ensure that you have selected an emission factor and then click on Button 2. ('2. Use Variable Electricity Generation Estimates'). Note that the outputs from this calculation will be displayed on the '6. Summary' sheet. *If you would like to use 'Average Grid Intensity Factors' AND 'Variable Electricity Generation Estimates', please click on Button 3. ('3. Use Both'). This button will use 'Average Grid Intensity Factors' from the '3. Data' sheet and the values you entered in cells C66 - C91 of the '2. Scoping' sheet to calculate annual emissions [reductions/displacements] for every year of operation. Note that the outputs from this calculation will be displayed on the '6. Summary' sheet. STEP 4. Write a formula to calculate annual project-related emissions using the selected emission factor and values recorded in the table. The ouput MUST be in units of tCO2e/year. STEP 5. Repeat STEPS 1. - 4. for the baseline in the baseline template. STEP 6. Where the project has more than one component, please repeat STEPS 1. - 5. using the template tables.
B18: Notes:
B20: - Should you need additional tables, please email the program: cmif-fimc@nrcan-rncan.gc.ca - Please review the example calculations found in the previous sheet before filling in the tables below.
B27: Project | H27: Baseline
P29: Average Grid Intensity Facotrs OR Variable Electricity Generation Estimates | AN29: Total
B30: Please select component from dropdown below: | H30: Please select component from dropdown below:
B31: NEW bulk generation | D31: Reduction/displacement type: | E31: =IF(VLOOKUP(B31,Table5[[Component Category]:[Type of GHG Emission '[Dropdown']]],4,FALSE)=0,"",VLOOKUP(B31,Table5[[Component Category]:[Type of GHG Emission '[Dropdown']]],4,FALSE)) -> Direct | H31: EXISTING bulk generation | J31: Reduction/displacement type: | K31: =IF(VLOOKUP(H31,Table12[[Component Category]:[Type of GHG Emission Reduction/Displacement '[Dropdown']]],4,FALSE)=0,"",VLOOKUP(H31,Table12[[Component Category]:[Type of GHG Emission Reduction/Displacement '[Dropdown']]],4,FALSE)) ->  | P31: =B31 -> NEW bulk generation | Q31: =B32 -> P.1. | T31: =$H$31 -> EXISTING bulk generation | U31: =$H$32 -> B.1. | X31: =$B$49 -> NEW bulk generation | Y31: =$B$50 -> P.1. | AB31: =$H$49 -> EXISTING bulk generation | AC31: =$H$50 -> B.1. | AF31: =$B$67 -> NEW bulk generation | AG31: =$B$68 -> P.1. | AJ31: =$H$67 -> EXISTING bulk generation | AK31: =$H$68 -> B.1. | AN31: Total - Direct | AR31: Total - Direct
B32: =INDEX(Table5[Component Index],MATCH(B31,Table5[Component Category],0)) -> P.1. | H32: =INDEX(Table12[Component Index],MATCH(H31,Table12[Component Category],0)) -> B.1. | P32: =E31 -> Direct | T32: =$K$31 ->  | X32: =$E$49 -> Direct | AB32: =$K$49 ->  | AF32: =$E$67 -> Direct | AJ32: =$K$67 -> 
P33: Project Emissions Array | T33: Baseline Emissions Array | X33: Project Emissions Array | AB33: Baseline Emissions Array | AF33: Project Emissions Array | AJ33: Baseline Emissions Array | AN33: Project Emissions Array | AR33: Baseline Emissions Array
B34: Parameter | C34: Value | D34: Unit | E34: Notes | H34: Parameter | I34: Value | J34: Unit | K34: Notes | P34: 0 | Q34: tCO2e/year | U34: tCO2e/year | X34: 0 | Y34: tCO2e/year | AC34: tCO2e/year | AG34: tCO2e/year | AK34: tCO2e/year | AN34: =IF($P$32="Direct",P34,0)+IF($X$32="Direct",X34,0)+IF($AF$32="Direct",AF34) -> 0 | AO34: tCO2e/year | AR34: =IF($T$32="Direct",T34,0)+IF($AB$32="Direct",AB34,0)+IF($AJ$32="Direct",AJ34,0) -> 0 | AS34: tCO2e/year
P35: 0 | Q35: tCO2e/year | U35: tCO2e/year | X35: 0 | Y35: tCO2e/year | AC35: tCO2e/year | AG35: tCO2e/year | AK35: tCO2e/year | AN35: 0 | AO35: tCO2e/year | AR35: 0 | AS35: tCO2e/year
P36: 0 | Q36: tCO2e/year | U36: tCO2e/year | X36: 0 | Y36: tCO2e/year | AC36: tCO2e/year | AG36: tCO2e/year | AK36: tCO2e/year | AN36: 0 | AO36: tCO2e/year | AR36: 0 | AS36: tCO2e/year
P37: 0 | Q37: tCO2e/year | U37: tCO2e/year | X37: 0 | Y37: tCO2e/year | AC37: tCO2e/year | AG37: tCO2e/year | AK37: tCO2e/year | AN37: 0 | AO37: tCO2e/year | AR37: 0 | AS37: tCO2e/year
P38: 0 | Q38: tCO2e/year | U38: tCO2e/year | X38: 0 | Y38: tCO2e/year | AC38: tCO2e/year | AG38: tCO2e/year | AK38: tCO2e/year | AN38: 0 | AO38: tCO2e/year | AR38: 0 | AS38: tCO2e/year
P39: 0 | Q39: tCO2e/year | U39: tCO2e/year | X39: 0 | Y39: tCO2e/year | AC39: tCO2e/year | AG39: tCO2e/year | AK39: tCO2e/year | AN39: 0 | AO39: tCO2e/year | AR39: 0 | AS39: tCO2e/year
P40: 0 | Q40: tCO2e/year | U40: tCO2e/year | X40: 0 | Y40: tCO2e/year | AC40: tCO2e/year | AG40: tCO2e/year | AK40: tCO2e/year | AN40: 0 | AO40: tCO2e/year | AR40: 0 | AS40: tCO2e/year
B41: *Add parameter as required | H41: *Add parameter as required | P41: 0 | Q41: tCO2e/year | U41: tCO2e/year | X41: 0 | Y41: tCO2e/year | AC41: tCO2e/year | AG41: tCO2e/year | AK41: tCO2e/year | AN41: 0 | AO41: tCO2e/year | AR41: 0 | AS41: tCO2e/year
E42: EF Description | K42: EF Description | P42: 0 | Q42: tCO2e/year | U42: tCO2e/year | X42: 0 | Y42: tCO2e/year | AC42: tCO2e/year | AG42: tCO2e/year | AK42: tCO2e/year | AN42: 0 | AO42: tCO2e/year | AR42: 0 | AS42: tCO2e/year
B43: Emission factor (EF) | D43: Please enter unit here | H43: Emission factor (EF) | J43: Please enter unit here | P43: 0 | Q43: tCO2e/year | U43: tCO2e/year | X43: 0 | Y43: tCO2e/year | AC43: tCO2e/year | AG43: tCO2e/year | AK43: tCO2e/year | AN43: 0 | AO43: tCO2e/year | AR43: 0 | AS43: tCO2e/year
P44: 0 | Q44: tCO2e/year | U44: tCO2e/year | X44: 0 | Y44: tCO2e/year | AC44: tCO2e/year | AG44: tCO2e/year | AK44: tCO2e/year | AN44: 0 | AO44: tCO2e/year | AR44: 0 | AS44: tCO2e/year
B45: Emissions (annual) | C45: =C38*C43 -> 0 | D45: tCO2e/year | H45: Emissions (annual) | I45: =I38*I43 -> 0 | J45: tCO2e/year | P45: 0 | Q45: tCO2e/year | U45: tCO2e/year | X45: 0 | Y45: tCO2e/year | AC45: tCO2e/year | AG45: tCO2e/year | AK45: tCO2e/year | AN45: 0 | AO45: tCO2e/year | AR45: 0 | AS45: tCO2e/year
P46: 0 | Q46: tCO2e/year | U46: tCO2e/year | X46: 0 | Y46: tCO2e/year | AC46: tCO2e/year | AG46: tCO2e/year | AK46: tCO2e/year | AN46: 0 | AO46: tCO2e/year | AR46: 0 | AS46: tCO2e/year
P47: 0 | Q47: tCO2e/year | U47: tCO2e/year | X47: 0 | Y47: tCO2e/year | AC47: tCO2e/year | AG47: tCO2e/year | AK47: tCO2e/year | AN47: 0 | AO47: tCO2e/year | AR47: 0 | AS47: tCO2e/year
B48: Please select component from dropdown below: | H48: Please select component from dropdown below: | P48: 0 | Q48: tCO2e/year | U48: tCO2e/year | X48: 0 | Y48: tCO2e/year | AC48: tCO2e/year | AG48: tCO2e/year | AK48: tCO2e/year | AN48: 0 | AO48: tCO2e/year | AR48: 0 | AS48: tCO2e/year
B49: NEW bulk generation | D49: Reduction/displacement type: | E49: =IF(VLOOKUP(B49,Table5[[Component Category]:[Type of GHG Emission '[Dropdown']]],4,FALSE)=0,"",VLOOKUP(B49,Table5[[Component Category]:[Type of GHG Emission '[Dropdown']]],4,FALSE)) -> Direct | H49: EXISTING bulk generation | J49: Reduction/displacement type: | K49: =IF(VLOOKUP(H49,Table12[[Component Category]:[Type of GHG Emission Reduction/Displacement '[Dropdown']]],4,FALSE)=0,"",VLOOKUP(H49,Table12[[Component Category]:[Type of GHG Emission Reduction/Displacement '[Dropdown']]],4,FALSE)) ->  | P49: 0 | Q49: tCO2e/year | U49: tCO2e/year | X49: 0 | Y49: tCO2e/year | AC49: tCO2e/year | AG49: tCO2e/year | AK49: tCO2e/year | AN49: 0 | AO49: tCO2e/year | AR49: 0 | AS49: tCO2e/year
B50: =INDEX(Table5[Component Index],MATCH(B49,Table5[Component Category],0)) -> P.1. | H50: =INDEX(Table12[Component Index],MATCH(H49,Table12[Component Category],0)) -> B.1. | P50: 0 | Q50: tCO2e/year | U50: tCO2e/year | X50: 0 | Y50: tCO2e/year | AC50: tCO2e/year | AG50: tCO2e/year | AK50: tCO2e/year | AN50: 0 | AO50: tCO2e/year | AR50: 0 | AS50: tCO2e/year
P51: 0 | Q51: tCO2e/year | U51: tCO2e/year | X51: 0 | Y51: tCO2e/year | AC51: tCO2e/year | AG51: tCO2e/year | AK51: tCO2e/year | AN51: 0 | AO51: tCO2e/year | AR51: 0 | AS51: tCO2e/year
B52: Parameter | C52: Value | D52: Unit | E52: Notes | H52: Parameter | I52: Value | J52: Unit | K52: Notes | P52: 0 | Q52: tCO2e/year | U52: tCO2e/year | X52: 0 | Y52: tCO2e/year | AC52: tCO2e/year | AG52: tCO2e/year | AK52: tCO2e/year | AN52: 0 | AO52: tCO2e/year | AR52: 0 | AS52: tCO2e/year
P53: 0 | Q53: tCO2e/year | U53: tCO2e/year | X53: 0 | Y53: tCO2e/year | AC53: tCO2e/year | AG53: tCO2e/year | AK53: tCO2e/year | AN53: 0 | AO53: tCO2e/year | AR53: 0 | AS53: tCO2e/year
P54: 0 | Q54: tCO2e/year | U54: tCO2e/year | X54: 0 | Y54: tCO2e/year | AC54: tCO2e/year | AG54: tCO2e/year | AK54: tCO2e/year | AN54: 0 | AO54: tCO2e/year | AR54: 0 | AS54: tCO2e/year
P55: 0 | Q55: tCO2e/year | U55: tCO2e/year | X55: 0 | Y55: tCO2e/year | AC55: tCO2e/year | AG55: tCO2e/year | AK55: tCO2e/year | AN55: 0 | AO55: tCO2e/year | AR55: 0 | AS55: tCO2e/year
P56: 0 | Q56: tCO2e/year | U56: tCO2e/year | X56: 0 | Y56: tCO2e/year | AC56: tCO2e/year | AG56: tCO2e/year | AK56: tCO2e/year | AN56: 0 | AO56: tCO2e/year | AR56: 0 | AS56: tCO2e/year
P57: 0 | Q57: tCO2e/year | U57: tCO2e/year | X57: 0 | Y57: tCO2e/year | AC57: tCO2e/year | AG57: tCO2e/year | AK57: tCO2e/year | AN57: 0 | AO57: tCO2e/year | AR57: 0 | AS57: tCO2e/year
P58: 0 | Q58: tCO2e/year | U58: tCO2e/year | X58: 0 | Y58: tCO2e/year | AC58: tCO2e/year | AG58: tCO2e/year | AK58: tCO2e/year | AN58: 0 | AO58: tCO2e/year | AR58: 0 | AS58: tCO2e/year
B59: *Add parameter as required | H59: *Add parameter as required | P59: 0 | Q59: tCO2e/year | U59: tCO2e/year | X59: 0 | Y59: tCO2e/year | AC59: tCO2e/year | AG59: tCO2e/year | AK59: tCO2e/year | AN59: 0 | AO59: tCO2e/year | AR59: 0 | AS59: tCO2e/year
E60: EF Description | K60: EF Description | P60: 0 | X60: 0
B61: Emission factor (EF) | D61: Please enter unit here | H61: Emission factor (EF) | J61: Please enter unit here | P61: 0 | X61: 0 | AN61: Total
P62: 0 | X62: 0
B63: Emissions (annual) | D63: tCO2e/year | H63: Emissions (annual) | J63: tCO2e/year | P63: 0 | Q63: =$B$32 -> P.1. | T63: =$H$31 -> EXISTING bulk generation | U63: =$H$32 -> B.1. | X63: 0 | Y63: =$B$50 -> P.1. | AB63: =$H$49 -> EXISTING bulk generation | AC63: =$H$50 -> B.1. | AF63: =$B$67 -> NEW bulk generation | AG63: =$B$68 -> P.1. | AJ63: =$H$67 -> EXISTING bulk generation | AK63: =$H$68 -> B.1. | AN63: Total - Direct | AR63: Total - Direct
P64: 0 | T64: =$K$31 ->  | X64: 0 | AB64: =$K$49 ->  | AF64: =$E$67 -> Direct | AJ64: =$K$67 -> 
P65: 0 | T65: Baseline Emissions Array | X65: 0 | AB65: Baseline Emissions Array | AF65: Project Emissions Array | AJ65: Baseline Emissions Array | AN65: Project Emissions Array | AR65: Baseline Emissions Array
B66: Please select component from dropdown below: | H66: Please select component from dropdown below: | P66: 0 | Q66: tCO2e/year | U66: tCO2e/year | X66: 0 | Y66: tCO2e/year | AC66: tCO2e/year | AG66: tCO2e/year | AK66: tCO2e/year | AN66: =IF($P$64="Direct",P66,0)+IF($X$64="Direct",X66,0)+IF($AF$64="Direct",AF66,0) -> 0 | AO66: tCO2e/year | AR66: =IF($T$64="Direct",T66,0)+IF($AB$64="Direct",AB66,0)+IF($AJ$64="Direct",AJ66,0) -> 0 | AS66: tCO2e/year
B67: NEW bulk generation | D67: Reduction/displacement type: | E67: =IF(VLOOKUP(B67,Table5[[Component Category]:[Type of GHG Emission '[Dropdown']]],4,FALSE)=0,"",VLOOKUP(B67,Table5[[Component Category]:[Type of GHG Emission '[Dropdown']]],4,FALSE)) -> Direct | H67: EXISTING bulk generation | J67: Reduction/displacement type: | K67: =IF(VLOOKUP(H67,Table12[[Component Category]:[Type of GHG Emission Reduction/Displacement '[Dropdown']]],4,FALSE)=0,"",VLOOKUP(H67,Table12[[Component Category]:[Type of GHG Emission Reduction/Displacement '[Dropdown']]],4,FALSE)) ->  | P67: 0 | Q67: tCO2e/year | U67: tCO2e/year | X67: 0 | Y67: tCO2e/year | AC67: tCO2e/year | AG67: tCO2e/year | AK67: tCO2e/year | AN67: 0 | AO67: tCO2e/year | AR67: 0 | AS67: tCO2e/year
B68: =INDEX(Table5[Component Index],MATCH(B67,Table5[Component Category],0)) -> P.1. | H68: =INDEX(Table12[Component Index],MATCH(H67,Table12[Component Category],0)) -> B.1. | P68: 0 | Q68: tCO2e/year | U68: tCO2e/year | X68: 0 | Y68: tCO2e/year | AC68: tCO2e/year | AG68: tCO2e/year | AK68: tCO2e/year | AN68: 0 | AO68: tCO2e/year | AR68: 0 | AS68: tCO2e/year
P69: 0 | Q69: tCO2e/year | U69: tCO2e/year | X69: 0 | Y69: tCO2e/year | AC69: tCO2e/year | AG69: tCO2e/year | AK69: tCO2e/year | AN69: 0 | AO69: tCO2e/year | AR69: 0 | AS69: tCO2e/year
B70: Parameter | C70: Value | D70: Unit | E70: Notes | H70: Parameter | I70: Value | J70: Unit | K70: Notes | P70: 0 | Q70: tCO2e/year | U70: tCO2e/year | X70: 0 | Y70: tCO2e/year | AC70: tCO2e/year | AG70: tCO2e/year | AK70: tCO2e/year | AN70: 0 | AO70: tCO2e/year | AR70: 0 | AS70: tCO2e/year
P71: 0 | Q71: tCO2e/year | U71: tCO2e/year | X71: 0 | Y71: tCO2e/year | AC71: tCO2e/year | AG71: tCO2e/year | AK71: tCO2e/year | AN71: 0 | AO71: tCO2e/year | AR71: 0 | AS71: tCO2e/year
P72: 0 | Q72: tCO2e/year | U72: tCO2e/year | X72: 0 | Y72: tCO2e/year | AC72: tCO2e/year | AG72: tCO2e/year | AK72: tCO2e/year | AN72: 0 | AO72: tCO2e/year | AR72: 0 | AS72: tCO2e/year
P73: 0 | Q73: tCO2e/year | U73: tCO2e/year | X73: 0 | Y73: tCO2e/year | AC73: tCO2e/year | AG73: tCO2e/year | AK73: tCO2e/year | AN73: 0 | AO73: tCO2e/year | AR73: 0 | AS73: tCO2e/year
P74: 0 | Q74: tCO2e/year | U74: tCO2e/year | X74: 0 | Y74: tCO2e/year | AC74: tCO2e/year | AG74: tCO2e/year | AK74: tCO2e/year | AN74: 0 | AO74: tCO2e/year | AR74: 0 | AS74: tCO2e/year
P75: 0 | Q75: tCO2e/year | U75: tCO2e/year | X75: 0 | Y75: tCO2e/year | AC75: tCO2e/year | AG75: tCO2e/year | AK75: tCO2e/year | AN75: 0 | AO75: tCO2e/year | AR75: 0 | AS75: tCO2e/year
P76: 0 | Q76: tCO2e/year | U76: tCO2e/year | X76: 0 | Y76: tCO2e/year | AC76: tCO2e/year | AG76: tCO2e/year | AK76: tCO2e/year | AN76: 0 | AO76: tCO2e/year | AR76: 0 | AS76: tCO2e/year
B77: *Add parameter as required | H77: *Add parameter as required | P77: 0 | Q77: tCO2e/year | U77: tCO2e/year | X77: 0 | Y77: tCO2e/year | AC77: tCO2e/year | AG77: tCO2e/year | AK77: tCO2e/year | AN77: 0 | AO77: tCO2e/year | AR77: 0 | AS77: tCO2e/year
E78: EF Description | K78: EF Description | P78: 0 | Q78: tCO2e/year | U78: tCO2e/year | X78: 0 | Y78: tCO2e/year | AC78: tCO2e/year | AG78: tCO2e/year | AK78: tCO2e/year | AN78: 0 | AO78: tCO2e/year | AR78: 0 | AS78: tCO2e/year
B79: Emission factor (EF) | D79: Please enter unit here | H79: Emission factor (EF) | J79: Please enter unit here | P79: 0 | Q79: tCO2e/year | U79: tCO2e/year | X79: 0 | Y79: tCO2e/year | AC79: tCO2e/year | AG79: tCO2e/year | AK79: tCO2e/year | AN79: 0 | AO79: tCO2e/year | AR79: 0 | AS79: tCO2e/year
P80: 0 | Q80: tCO2e/year | U80: tCO2e/year | X80: 0 | Y80: tCO2e/year | AC80: tCO2e/year | AG80: tCO2e/year | AK80: tCO2e/year | AN80: 0 | AO80: tCO2e/year | AR80: 0 | AS80: tCO2e/year
B81: Emissions (annual) | D81: tCO2e/year | H81: Emissions (annual) | J81: tCO2e/year | P81: 0 | Q81: tCO2e/year | U81: tCO2e/year | X81: 0 | Y81: tCO2e/year | AC81: tCO2e/year | AG81: tCO2e/year | AK81: tCO2e/year | AN81: 0 | AO81: tCO2e/year | AR81: 0 | AS81: tCO2e/year
P82: 0 | Q82: tCO2e/year | U82: tCO2e/year | X82: 0 | Y82: tCO2e/year | AC82: tCO2e/year | AG82: tCO2e/year | AK82: tCO2e/year | AN82: 0 | AO82: tCO2e/year | AR82: 0 | AS82: tCO2e/year
P83: 0 | Q83: tCO2e/year | U83: tCO2e/year | X83: 0 | Y83: tCO2e/year | AC83: tCO2e/year | AG83: tCO2e/year | AK83: tCO2e/year | AN83: 0 | AO83: tCO2e/year | AR83: 0 | AS83: tCO2e/year
B84: DIRECT: | H84: DIRECT: | P84: 0 | Q84: tCO2e/year | U84: tCO2e/year | X84: 0 | Y84: tCO2e/year | AC84: tCO2e/year | AG84: tCO2e/year | AK84: tCO2e/year | AN84: 0 | AO84: tCO2e/year | AR84: 0 | AS84: tCO2e/year
B85: Total project emissions (annual): | C85: =SUMIF(E31,"Direct",C45)+SUMIF(E49,"Direct",C63)+SUMIF(E67,"Direct",C81) -> 0 | D85: tCO2e/year | H85: Total baseline emissions (annual): | I85: =SUMIF(K31,"Direct",I45)+SUMIF(K49,"Direct",I63)+SUMIF(K67,"Direct",I81) -> 0 | J85: tCO2e/year | Q85: tCO2e/year | U85: tCO2e/year | Y85: tCO2e/year | AC85: tCO2e/year | AG85: tCO2e/year | AK85: tCO2e/year | AN85: 0 | AO85: tCO2e/year | AR85: 0 | AS85: tCO2e/year
Q86: tCO2e/year | U86: tCO2e/year | Y86: tCO2e/year | AC86: tCO2e/year | AG86: tCO2e/year | AK86: tCO2e/year | AN86: 0 | AO86: tCO2e/year | AR86: 0 | AS86: tCO2e/year
B87: INDIRECT: | H87: INDIRECT: | Q87: tCO2e/year | U87: tCO2e/year | Y87: tCO2e/year | AC87: tCO2e/year | AG87: tCO2e/year | AK87: tCO2e/year | AN87: 0 | AO87: tCO2e/year | AR87: 0 | AS87: tCO2e/year
B88: Total project emissions (annual): | C88: =SUMIF(E31,"Indirect",C45)+SUMIF(E49,"Indirect",C63)+SUMIF(E67,"Indirect",C81) -> 0 | D88: tCO2e/year | H88: Total baseline emissions (annual): | I88: =SUMIF(K31,"Indirect",I45)+SUMIF(K49,"Indirect",I63)+SUMIF(K67,"Indirect",I81) -> 0 | J88: tCO2e/year | Q88: tCO2e/year | U88: tCO2e/year | Y88: tCO2e/year | AC88: tCO2e/year | AG88: tCO2e/year | AK88: tCO2e/year | AN88: 0 | AO88: tCO2e/year | AR88: 0 | AS88: tCO2e/year
Q89: tCO2e/year | U89: tCO2e/year | Y89: tCO2e/year | AC89: tCO2e/year | AG89: tCO2e/year | AK89: tCO2e/year | AN89: 0 | AO89: tCO2e/year | AR89: 0 | AS89: tCO2e/year
Q90: tCO2e/year | U90: tCO2e/year | Y90: tCO2e/year | AC90: tCO2e/year | AG90: tCO2e/year | AK90: tCO2e/year | AN90: 0 | AO90: tCO2e/year | AR90: 0 | AS90: tCO2e/year
Q91: tCO2e/year | U91: tCO2e/year | Y91: tCO2e/year | AC91: tCO2e/year | AG91: tCO2e/year | AK91: tCO2e/year | AN91: 0 | AO91: tCO2e/year | AR91: 0 | AS91: tCO2e/year

Sheet 6. Summary
B2: Summary
B4: GHG Balance
B7: Direct | F7: Indirect
B9: Total project emissions (annual): | C9: =IF('1b. Basic info'!F63="",'5. Calculations'!C85,'1b. Basic info'!F63) -> 0 | D9: tCO2e/year | F9: Total project emissions (annual): | G9: ='5. Calculations'!C88 -> 0 | H9: tCO2e/year
B10: Total baseline emissions (annual): | C10: =IF('1b. Basic info'!G63="",'5. Calculations'!I85,'1b. Basic info'!G63) -> 0 | D10: tCO2e/year | F10: Total baseline emisisons (annual): | G10: ='5. Calculations'!I88 -> 0 | H10: tCO2e/year
B12: Net emissions (annual) [DIRECT]: | C12: =C10-C9 -> 0 | D12: tCO2e/year | F12: Net emissions (annual) [INDIRECT]: | G12: =G10-G9 -> 0 | H12: tCO2e/year
C13: =IF(OR(SUM('5. Calculations'!AN34:AN59)<>0,SUM('5. Calculations'!AR34:AR59)<>0,SUM('5. Calculations'!AN66:AN91)<>0,SUM('5. Calculations'!AR66:AR91)<>0),"*Baseline emissions and/or Project emissions vary from year to year. Please consult summary table below.","") -> 
B14: Average annual percentage reduction: | C14: =(C12+'1b. Basic info'!D3G12)/(C10+G10) -> 
B15: Quantification of future GHG emission reductions/displacements [DIRECT]
B17: Calendar year project is commissioned and achieves actual emission reductions or displacements:
B18: Life of funded technology, product, or service (years):
B20: Description of variability:
B21: If applicable, please describe any expected change in the anticipated volume of greenhouse gas emission reductions or displacements over time and the reason for this variability.
B24: Year | C24: Baseline emissions (tCO2e/year) | D24: Change in baseline emissions (%) | F24: Project emissions (tCO2e/year) | G24: Change in project emissions (%) | H24: Total annual emission reductions/displacements (tCO2e/year) | I24: Cumulative emission reductions/displacements (tCO2e)
B25: =D17 -> 0 | C25: =IF(B25<>"",IF('5. Calculations'!AR66=0,IF('5. Calculations'!AR34=0,C10,'5. Calculations'!AR34),'5. Calculations'!AR66),0) -> 0 | D25: 0 | F25: =IF(B25<>"",IF('5. Calculations'!AN66=0,IF('5. Calculations'!AN34=0,C9,'5. Calculations'!AN34),'5. Calculations'!AN66),0) -> 0 | G25: 0 | H25: =C25-F25 -> 0 | I25: =H25 -> 0
B26: =IFERROR(IF((B25+1)>($D$17+$D$18),"",(B25+1)),"") ->  | C26: =IF(B26<>"",IF(B26>2050,(C25+(D26*C25)),IF('5. Calculations'!AR67=0,IF('5. Calculations'!AR35=0,(C25+(D26*C25)),'5. Calculations'!AR35),'5. Calculations'!AR67)),0) -> 0 | F26: =IF(B26<>"",IF(B26>2050,(F25+(G26*F25)),IF('5. Calculations'!AN67=0,IF('5. Calculations'!AN35=0,(F25+(G26*F25)),'5. Calculations'!AN35),'5. Calculations'!AN67)),0) -> 0 | H26: =C26-F26 -> 0 | I26: =I25+H26 -> 0
B27: =IFERROR(IF((B26+1)>($D$17+$D$18),"",(B26+1)),"") ->  | C27: =IF(B27<>"",IF(B27>2050,(C26+(D27*C26)),IF('5. Calculations'!AR68=0,IF('5. Calculations'!AR36=0,(C26+(D27*C26)),'5. Calculations'!AR36),'5. Calculations'!AR68)),0) -> 0 | F27: =IF(B27<>"",IF(B27>2050,(F26+(G27*F26)),IF('5. Calculations'!AN68=0,IF('5. Calculations'!AN36=0,(F26+(G27*F26)),'5. Calculations'!AN36),'5. Calculations'!AN68)),0) -> 0 | H27: =C27-F27 -> 0 | I27: =I26+H27 -> 0
C28: =IF(B28<>"",IF(B28>2050,(C27+(D28*C27)),IF('5. Calculations'!AR69=0,IF('5. Calculations'!AR37=0,(C27+(D28*C27)),'5. Calculations'!AR37),'5. Calculations'!AR69)),0) -> 0 | F28: =IF(B28<>"",IF(B28>2050,(F27+(G28*F27)),IF('5. Calculations'!AN69=0,IF('5. Calculations'!AN37=0,(F27+(G28*F27)),'5. Calculations'!AN37),'5. Calculations'!AN69)),0) -> 0 | H28: 0 | I28: 0
C29: =IF(B29<>"",IF(B29>2050,(C28+(D29*C28)),IF('5. Calculations'!AR70=0,IF('5. Calculations'!AR38=0,(C28+(D29*C28)),'5. Calculations'!AR38),'5. Calculations'!AR70)),0) -> 0 | F29: =IF(B29<>"",IF(B29>2050,(F28+(G29*F28)),IF('5. Calculations'!AN70=0,IF('5. Calculations'!AN38=0,(F28+(G29*F28)),'5. Calculations'!AN38),'5. Calculations'!AN70)),0) -> 0 | H29: 0 | I29: 0
C30: =IF(B30<>"",IF(B30>2050,(C29+(D30*C29)),IF('5. Calculations'!AR71=0,IF('5. Calculations'!AR39=0,(C29+(D30*C29)),'5. Calculations'!AR39),'5. Calculations'!AR71)),0) -> 0 | F30: =IF(B30<>"",IF(B30>2050,(F29+(G30*F29)),IF('5. Calculations'!AN71=0,IF('5. Calculations'!AN39=0,(F29+(G30*F29)),'5. Calculations'!AN39),'5. Calculations'!AN71)),0) -> 0 | H30: 0 | I30: 0
C31: =IF(B31<>"",IF(B31>2050,(C30+(D31*C30)),IF('5. Calculations'!AR72=0,IF('5. Calculations'!AR40=0,(C30+(D31*C30)),'5. Calculations'!AR40),'5. Calculations'!AR72)),0) -> 0 | F31: =IF(B31<>"",IF(B31>2050,(F30+(G31*F30)),IF('5. Calculations'!AN72=0,IF('5. Calculations'!AN40=0,(F30+(G31*F30)),'5. Calculations'!AN40),'5. Calculations'!AN72)),0) -> 0 | H31: 0 | I31: 0
C32: =IF(B32<>"",IF(B32>2050,(C31+(D32*C31)),IF('5. Calculations'!AR73=0,IF('5. Calculations'!AR41=0,(C31+(D32*C31)),'5. Calculations'!AR41),'5. Calculations'!AR73)),0) -> 0 | F32: =IF(B32<>"",IF(B32>2050,(F31+(G32*F31)),IF('5. Calculations'!AN73=0,IF('5. Calculations'!AN41=0,(F31+(G32*F31)),'5. Calculations'!AN41),'5. Calculations'!AN73)),0) -> 0 | H32: 0 | I32: 0
C33: =IF(B33<>"",IF(B33>2050,(C32+(D33*C32)),IF('5. Calculations'!AR74=0,IF('5. Calculations'!AR42=0,(C32+(D33*C32)),'5. Calculations'!AR42),'5. Calculations'!AR74)),0) -> 0 | F33: =IF(B33<>"",IF(B33>2050,(F32+(G33*F32)),IF('5. Calculations'!AN74=0,IF('5. Calculations'!AN42=0,(F32+(G33*F32)),'5. Calculations'!AN42),'5. Calculations'!AN74)),0) -> 0 | H33: 0 | I33: 0
C34: =IF(B34<>"",IF(B34>2050,(C33+(D34*C33)),IF('5. Calculations'!AR75=0,IF('5. Calculations'!AR43=0,(C33+(D34*C33)),'5. Calculations'!AR43),'5. Calculations'!AR75)),0) -> 0 | F34: =IF(B34<>"",IF(B34>2050,(F33+(G34*F33)),IF('5. Calculations'!AN75=0,IF('5. Calculations'!AN43=0,(F33+(G34*F33)),'5. Calculations'!AN43),'5. Calculations'!AN75)),0) -> 0 | H34: 0 | I34: 0
C35: =IF(B35<>"",IF(B35>2050,(C34+(D35*C34)),IF('5. Calculations'!AR76=0,IF('5. Calculations'!AR44=0,(C34+(D35*C34)),'5. Calculations'!AR44),'5. Calculations'!AR76)),0) -> 0 | F35: =IF(B35<>"",IF(B35>2050,(F34+(G35*F34)),IF('5. Calculations'!AN76=0,IF('5. Calculations'!AN44=0,(F34+(G35*F34)),'5. Calculations'!AN44),'5. Calculations'!AN76)),0) -> 0 | H35: 0 | I35: 0
C36: =IF(B36<>"",IF(B36>2050,(C35+(D36*C35)),IF('5. Calculations'!AR77=0,IF('5. Calculations'!AR45=0,(C35+(D36*C35)),'5. Calculations'!AR45),'5. Calculations'!AR77)),0) -> 0 | F36: =IF(B36<>"",IF(B36>2050,(F35+(G36*F35)),IF('5. Calculations'!AN77=0,IF('5. Calculations'!AN45=0,(F35+(G36*F35)),'5. Calculations'!AN45),'5. Calculations'!AN77)),0) -> 0 | H36: 0 | I36: 0
C37: =IF(B37<>"",IF(B37>2050,(C36+(D37*C36)),IF('5. Calculations'!AR78=0,IF('5. Calculations'!AR46=0,(C36+(D37*C36)),'5. Calculations'!AR46),'5. Calculations'!AR78)),0) -> 0 | F37: =IF(B37<>"",IF(B37>2050,(F36+(G37*F36)),IF('5. Calculations'!AN78=0,IF('5. Calculations'!AN46=0,(F36+(G37*F36)),'5. Calculations'!AN46),'5. Calculations'!AN78)),0) -> 0 | H37: 0 | I37: 0
C38: =IF(B38<>"",IF(B38>2050,(C37+(D38*C37)),IF('5. Calculations'!AR79=0,IF('5. Calculations'!AR47=0,(C37+(D38*C37)),'5. Calculations'!AR47),'5. Calculations'!AR79)),0) -> 0 | F38: =IF(B38<>"",IF(B38>2050,(F37+(G38*F37)),IF('5. Calculations'!AN79=0,IF('5. Calculations'!AN47=0,(F37+(G38*F37)),'5. Calculations'!AN47),'5. Calculations'!AN79)),0) -> 0 | H38: 0 | I38: 0
C39: =IF(B39<>"",IF(B39>2050,(C38+(D39*C38)),IF('5. Calculations'!AR80=0,IF('5. Calculations'!AR48=0,(C38+(D39*C38)),'5. Calculations'!AR48),'5. Calculations'!AR80)),0) -> 0 | F39: =IF(B39<>"",IF(B39>2050,(F38+(G39*F38)),IF('5. Calculations'!AN80=0,IF('5. Calculations'!AN48=0,(F38+(G39*F38)),'5. Calculations'!AN48),'5. Calculations'!AN80)),0) -> 0 | H39: 0 | I39: 0
C40: =IF(B40<>"",IF(B40>2050,(C39+(D40*C39)),IF('5. Calculations'!AR81=0,IF('5. Calculations'!AR49=0,(C39+(D40*C39)),'5. Calculations'!AR49),'5. Calculations'!AR81)),0) -> 0 | F40: =IF(B40<>"",IF(B40>2050,(F39+(G40*F39)),IF('5. Calculations'!AN81=0,IF('5. Calculations'!AN49=0,(F39+(G40*F39)),'5. Calculations'!AN49),'5. Calculations'!AN81)),0) -> 0 | H40: 0 | I40: 0
C41: =IF(B41<>"",IF(B41>2050,(C40+(D41*C40)),IF('5. Calculations'!AR82=0,IF('5. Calculations'!AR50=0,(C40+(D41*C40)),'5. Calculations'!AR50),'5. Calculations'!AR82)),0) -> 0 | F41: =IF(B41<>"",IF(B41>2050,(F40+(G41*F40)),IF('5. Calculations'!AN82=0,IF('5. Calculations'!AN50=0,(F40+(G41*F40)),'5. Calculations'!AN50),'5. Calculations'!AN82)),0) -> 0 | H41: 0 | I41: 0
C42: =IF(B42<>"",IF(B42>2050,(C41+(D42*C41)),IF('5. Calculations'!AR83=0,IF('5. Calculations'!AR51=0,(C41+(D42*C41)),'5. Calculations'!AR51),'5. Calculations'!AR83)),0) -> 0 | F42: =IF(B42<>"",IF(B42>2050,(F41+(G42*F41)),IF('5. Calculations'!AN83=0,IF('5. Calculations'!AN51=0,(F41+(G42*F41)),'5. Calculations'!AN51),'5. Calculations'!AN83)),0) -> 0 | H42: 0 | I42: 0
C43: =IF(B43<>"",IF(B43>2050,(C42+(D43*C42)),IF('5. Calculations'!AR84=0,IF('5. Calculations'!AR52=0,(C42+(D43*C42)),'5. Calculations'!AR52),'5. Calculations'!AR84)),0) -> 0 | F43: =IF(B43<>"",IF(B43>2050,(F42+(G43*F42)),IF('5. Calculations'!AN84=0,IF('5. Calculations'!AN52=0,(F42+(G43*F42)),'5. Calculations'!AN52),'5. Calculations'!AN84)),0) -> 0 | H43: 0 | I43: 0
C44: =IF(B44<>"",IF(B44>2050,(C43+(D44*C43)),IF('5. Calculations'!AR85=0,IF('5. Calculations'!AR53=0,(C43+(D44*C43)),'5. Calculations'!AR53),'5. Calculations'!AR85)),0) -> 0 | F44: =IF(B44<>"",IF(B44>2050,(F43+(G44*F43)),IF('5. Calculations'!AN85=0,IF('5. Calculations'!AN53=0,(F43+(G44*F43)),'5. Calculations'!AN53),'5. Calculations'!AN85)),0) -> 0 | H44: 0 | I44: 0
C45: =IF(B45<>"",IF(B45>2050,(C44+(D45*C44)),IF('5. Calculations'!AR86=0,IF('5. Calculations'!AR54=0,(C44+(D45*C44)),'5. Calculations'!AR54),'5. Calculations'!AR86)),0) -> 0 | F45: =IF(B45<>"",IF(B45>2050,(F44+(G45*F44)),IF('5. Calculations'!AN86=0,IF('5. Calculations'!AN54=0,(F44+(G45*F44)),'5. Calculations'!AN54),'5. Calculations'!AN86)),0) -> 0 | H45: 0 | I45: 0
C46: =IF(B46<>"",IF(B46>2050,(C45+(D46*C45)),IF('5. Calculations'!AR87=0,IF('5. Calculations'!AR55=0,(C45+(D46*C45)),'5. Calculations'!AR55),'5. Calculations'!AR87)),0) -> 0 | F46: =IF(B46<>"",IF(B46>2050,(F45+(G46*F45)),IF('5. Calculations'!AN87=0,IF('5. Calculations'!AN55=0,(F45+(G46*F45)),'5. Calculations'!AN55),'5. Calculations'!AN87)),0) -> 0 | H46: 0 | I46: 0
C47: =IF(B47<>"",IF(B47>2050,(C46+(D47*C46)),IF('5. Calculations'!AR88=0,IF('5. Calculations'!AR56=0,(C46+(D47*C46)),'5. Calculations'!AR56),'5. Calculations'!AR88)),0) -> 0 | F47: =IF(B47<>"",IF(B47>2050,(F46+(G47*F46)),IF('5. Calculations'!AN88=0,IF('5. Calculations'!AN56=0,(F46+(G47*F46)),'5. Calculations'!AN56),'5. Calculations'!AN88)),0) -> 0 | H47: 0 | I47: 0
C48: =IF(B48<>"",IF(B48>2050,(C47+(D48*C47)),IF('5. Calculations'!AR89=0,IF('5. Calculations'!AR57=0,(C47+(D48*C47)),'5. Calculations'!AR57),'5. Calculations'!AR89)),0) -> 0 | F48: =IF(B48<>"",IF(B48>2050,(F47+(G48*F47)),IF('5. Calculations'!AN89=0,IF('5. Calculations'!AN57=0,(F47+(G48*F47)),'5. Calculations'!AN57),'5. Calculations'!AN89)),0) -> 0 | H48: 0 | I48: 0
C49: =IF(B49<>"",IF(B49>2050,(C48+(D49*C48)),IF('5. Calculations'!AR90=0,IF('5. Calculations'!AR58=0,(C48+(D49*C48)),'5. Calculations'!AR58),'5. Calculations'!AR90)),0) -> 0 | F49: =IF(B49<>"",IF(B49>2050,(F48+(G49*F48)),IF('5. Calculations'!AN90=0,IF('5. Calculations'!AN58=0,(F48+(G49*F48)),'5. Calculations'!AN58),'5. Calculations'!AN90)),0) -> 0 | H49: 0 | I49: 0
C50: =IF(B50<>"",IF(B50>2050,(C49+(D50*C49)),IF('5. Calculations'!AR91=0,IF('5. Calculations'!AR59=0,(C49+(D50*C49)),'5. Calculations'!AR59),'5. Calculations'!AR91)),0) -> 0 | F50: =IF(B50<>"",IF(B50>2050,(F49+(G50*F49)),IF('5. Calculations'!AN91=0,IF('5. Calculations'!AN59=0,(F49+(G50*F49)),'5. Calculations'!AN59),'5. Calculations'!AN91)),0) -> 0 | H50: 0 | I50: 0
C51: =IF(B51<>"",IF(B51>2050,(C50+(D51*C50)),IF('5. Calculations'!AR92=0,IF('5. Calculations'!AR60=0,(C50+(D51*C50)),'5. Calculations'!AR60),'5. Calculations'!AR92)),0) -> 0 | F51: =IF(B51<>"",IF(B51>2050,(F50+(G51*F50)),IF('5. Calculations'!AN92=0,IF('5. Calculations'!AN60=0,(F50+(G51*F50)),'5. Calculations'!AN60),'5. Calculations'!AN92)),0) -> 0 | H51: 0 | I51: 0
C52: =IF(B52<>"",IF(B52>2050,(C51+(D52*C51)),IF('5. Calculations'!AR93=0,IF('5. Calculations'!AR61=0,(C51+(D52*C51)),'5. Calculations'!AR61),'5. Calculations'!AR93)),0) -> 0 | F52: =IF(B52<>"",IF(B52>2050,(F51+(G52*F51)),IF('5. Calculations'!AN93=0,IF('5. Calculations'!AN61=0,(F51+(G52*F51)),'5. Calculations'!AN61),'5. Calculations'!AN93)),0) -> 0 | H52: 0 | I52: 0
C53: =IF(B53<>"",IF(B53>2050,(C52+(D53*C52)),IF('5. Calculations'!AR94=0,IF('5. Calculations'!AR62=0,(C52+(D53*C52)),'5. Calculations'!AR62),'5. Calculations'!AR94)),0) -> 0 | F53: =IF(B53<>"",IF(B53>2050,(F52+(G53*F52)),IF('5. Calculations'!AN94=0,IF('5. Calculations'!AN62=0,(F52+(G53*F52)),'5. Calculations'!AN62),'5. Calculations'!AN94)),0) -> 0 | H53: 0 | I53: 0
C54: =IF(B54<>"",IF(B54>2050,(C53+(D54*C53)),IF('5. Calculations'!AR95=0,IF('5. Calculations'!AR63=0,(C53+(D54*C53)),'5. Calculations'!AR63),'5. Calculations'!AR95)),0) -> 0 | F54: =IF(B54<>"",IF(B54>2050,(F53+(G54*F53)),IF('5. Calculations'!AN95=0,IF('5. Calculations'!AN63=0,(F53+(G54*F53)),'5. Calculations'!AN63),'5. Calculations'!AN95)),0) -> 0 | H54: 0 | I54: 0
C55: =IF(B55<>"",IF(B55>2050,(C54+(D55*C54)),IF('5. Calculations'!AR96=0,IF('5. Calculations'!AR64=0,(C54+(D55*C54)),'5. Calculations'!AR64),'5. Calculations'!AR96)),0) -> 0 | F55: =IF(B55<>"",IF(B55>2050,(F54+(G55*F54)),IF('5. Calculations'!AN96=0,IF('5. Calculations'!AN64=0,(F54+(G55*F54)),'5. Calculations'!AN64),'5. Calculations'!AN96)),0) -> 0 | H55: 0 | I55: 0
C56: =IF(B56<>"",IF(B56>2050,(C55+(D56*C55)),IF('5. Calculations'!AR97=0,IF('5. Calculations'!AR65=0,(C55+(D56*C55)),'5. Calculations'!AR65),'5. Calculations'!AR97)),0) -> 0 | F56: =IF(B56<>"",IF(B56>2050,(F55+(G56*F55)),IF('5. Calculations'!AN97=0,IF('5. Calculations'!AN65=0,(F55+(G56*F55)),'5. Calculations'!AN65),'5. Calculations'!AN97)),0) -> 0 | H56: 0 | I56: 0
C57: =IF(B57<>"",IF(B57>2050,(C56+(D57*C56)),IF('5. Calculations'!AR98=0,IF('5. Calculations'!AR66=0,(C56+(D57*C56)),'5. Calculations'!AR66),'5. Calculations'!AR98)),0) -> 0 | F57: =IF(B57<>"",IF(B57>2050,(F56+(G57*F56)),IF('5. Calculations'!AN98=0,IF('5. Calculations'!AN66=0,(F56+(G57*F56)),'5. Calculations'!AN66),'5. Calculations'!AN98)),0) -> 0 | H57: 0 | I57: 0
C58: =IF(B58<>"",IF(B58>2050,(C57+(D58*C57)),IF('5. Calculations'!AR99=0,IF('5. Calculations'!AR67=0,(C57+(D58*C57)),'5. Calculations'!AR67),'5. Calculations'!AR99)),0) -> 0 | F58: =IF(B58<>"",IF(B58>2050,(F57+(G58*F57)),IF('5. Calculations'!AN99=0,IF('5. Calculations'!AN67=0,(F57+(G58*F57)),'5. Calculations'!AN67),'5. Calculations'!AN99)),0) -> 0 | H58: 0 | I58: 0
C59: =IF(B59<>"",IF(B59>2050,(C58+(D59*C58)),IF('5. Calculations'!AR100=0,IF('5. Calculations'!AR68=0,(C58+(D59*C58)),'5. Calculations'!AR68),'5. Calculations'!AR100)),0) -> 0 | F59: =IF(B59<>"",IF(B59>2050,(F58+(G59*F58)),IF('5. Calculations'!AN100=0,IF('5. Calculations'!AN68=0,(F58+(G59*F58)),'5. Calculations'!AN68),'5. Calculations'!AN100)),0) -> 0 | H59: 0 | I59: 0
C60: =IF(B60<>"",IF(B60>2050,(C59+(D60*C59)),IF('5. Calculations'!AR101=0,IF('5. Calculations'!AR69=0,(C59+(D60*C59)),'5. Calculations'!AR69),'5. Calculations'!AR101)),0) -> 0 | F60: =IF(B60<>"",IF(B60>2050,(F59+(G60*F59)),IF('5. Calculations'!AN101=0,IF('5. Calculations'!AN69=0,(F59+(G60*F59)),'5. Calculations'!AN69),'5. Calculations'!AN101)),0) -> 0 | H60: 0 | I60: 0
C61: =IF(B61<>"",IF(B61>2050,(C60+(D61*C60)),IF('5. Calculations'!AR102=0,IF('5. Calculations'!AR70=0,(C60+(D61*C60)),'5. Calculations'!AR70),'5. Calculations'!AR102)),0) -> 0 | F61: =IF(B61<>"",IF(B61>2050,(F60+(G61*F60)),IF('5. Calculations'!AN102=0,IF('5. Calculations'!AN70=0,(F60+(G61*F60)),'5. Calculations'!AN70),'5. Calculations'!AN102)),0) -> 0 | H61: 0 | I61: 0
C62: =IF(B62<>"",IF(B62>2050,(C61+(D62*C61)),IF('5. Calculations'!AR103=0,IF('5. Calculations'!AR71=0,(C61+(D62*C61)),'5. Calculations'!AR71),'5. Calculations'!AR103)),0) -> 0 | F62: =IF(B62<>"",IF(B62>2050,(F61+(G62*F61)),IF('5. Calculations'!AN103=0,IF('5. Calculations'!AN71=0,(F61+(G62*F61)),'5. Calculations'!AN71),'5. Calculations'!AN103)),0) -> 0 | H62: 0 | I62: 0
C63: =IF(B63<>"",IF(B63>2050,(C62+(D63*C62)),IF('5. Calculations'!AR104=0,IF('5. Calculations'!AR72=0,(C62+(D63*C62)),'5. Calculations'!AR72),'5. Calculations'!AR104)),0) -> 0 | F63: =IF(B63<>"",IF(B63>2050,(F62+(G63*F62)),IF('5. Calculations'!AN104=0,IF('5. Calculations'!AN72=0,(F62+(G63*F62)),'5. Calculations'!AN72),'5. Calculations'!AN104)),0) -> 0 | H63: 0 | I63: 0
C64: =IF(B64<>"",IF(B64>2050,(C63+(D64*C63)),IF('5. Calculations'!AR105=0,IF('5. Calculations'!AR73=0,(C63+(D64*C63)),'5. Calculations'!AR73),'5. Calculations'!AR105)),0) -> 0 | F64: =IF(B64<>"",IF(B64>2050,(F63+(G64*F63)),IF('5. Calculations'!AN105=0,IF('5. Calculations'!AN73=0,(F63+(G64*F63)),'5. Calculations'!AN73),'5. Calculations'!AN105)),0) -> 0 | H64: 0 | I64: 0
C65: =IF(B65<>"",IF(B65>2050,(C64+(D65*C64)),IF('5. Calculations'!AR106=0,IF('5. Calculations'!AR74=0,(C64+(D65*C64)),'5. Calculations'!AR74),'5. Calculations'!AR106)),0) -> 0 | F65: =IF(B65<>"",IF(B65>2050,(F64+(G65*F64)),IF('5. Calculations'!AN106=0,IF('5. Calculations'!AN74=0,(F64+(G65*F64)),'5. Calculations'!AN74),'5. Calculations'!AN106)),0) -> 0 | H65: 0 | I65: 0

Sheet Automation Reference (hidden)
B2: Characterization Dropdown | D2: Type of GHG Reduction | F2: Count of 'Not within project scope' - Project Components | H2: Count of 'Not within project scope' - Baseline Components
B3: Emitting component | D3: Direct | F3: =COUNTIF(Table5[Characterization '[DROPDOWN']],"Not within project scope") -> 0 | H3: =COUNTIF(Table12[Characterization '[Dropdown']],"Not within project scope") -> 0
B4: Non-emitting component | D4: Indirect
B5: Not within project scope | F5: Count of project components | H5: Count of baseline components
F6: =COUNTIF(Table5[Characterization '[DROPDOWN']],"Emitting component")+COUNTIF(Table5[Characterization '[DROPDOWN']],"Non-emitting component") -> 1 | H6: =COUNTIF(Table12[Characterization '[Dropdown']],"Emitting component")+COUNTIF(Table12[Characterization '[Dropdown']],"Non-emitting component") -> 0
